Workbook

Sheet Список компаний (hidden)
A1: ---------------------
A2: "Узбекинвест" НКЭИС | B2: 0001 | D2: 2021 | E2: ="31.03."&#REF! ->  | F2: ="03" -> 03
A3: "Узагросугурта" АО | B3: 0002 | D3: 2022 | E3: ="30.06."&#REF! ->  | F3: ="06" -> 06
A4: "Кафолат" АО | B4: 0003 | D4: 2023 | E4: ="30.09."&#REF! ->  | F4: ="09" -> 09
A5: “Alfa Invest” ООО | B5: 0004 | D5: 2024 | E5: ="31.12."&#REF! ->  | F5: ="12" -> 12
A6: “Alskom” АО | B6: 0005 | D6: 2025
A7: “Asia Inshurance” ООО | B7: 0006
A8: “Asko – Vostok” ООО | B8: 0007
A9: “Apex Insurance” ООО | B9: 0008
A10: “DD General Insurance” ООО | B10: 0009
A11: “Euroasia Insurance” СП ООО | B11: 0010
A12: “Garant Insurance Group” OOO | B12: 0011
A13: “Global Insurance Group” OOO | B13: 0012
A14: “GROSS Insurance” ООО | B14: 0013
A15: “Hamkor Sug’urta” ООО | B15: 0014
A16: «Imkon-Sug’urta» ООО | B16: 0015
A17: “INGO Uzbekistan” САО | B17: 0016
A18: “ISHONCH” МСК ООО | B18: 0017
A19: “Kafil Sug’urta” ООО | B19: 0018
A20: “Kapital Sug'urta” АО | B20: 0019
A21: “MY Insurance” OOO | B21: 0020
A22: “Omad Sug’urta” ООО | B22: 0021
A23: “PSB Insurance” OOO | B23: 0022
A24: “Perfect Insurance” ООО | B24: 0023
A25: “Inson” OOO | B25: 0024
A26: “Temiryo’l-Sug’urta” ООО | B26: 0025
A27: “Unipolis” ООО | B27: 0026
A28: “Universal Sug’urta” АО | B28: 0027
A29: “Xalq Sug’urta” ООО | B29: 0028
A30: "Agros Hayot" ООО | B30: 0029
A31: "Аlfa Life" ДХО | B31: 0030
A32: "Alskom-Vita " ООО | B32: 0031
A33: "Apex Life" ООО | B33: 0032
A34: "Euroasia Life" ООО | B34: 0033
A35: "Kafolat Hayot" ООО | B35: 0034
A36: "New Life Insurance" ООО | B36: 0035
A37: "O’zbekinvest Hayot" ООО | B37: 0036
A38: “Aria Insurance” ООО | B38: 0037
A39: “Semurg’ Insurance” СП ООО | B39: 0038
A40: “Sharq sug’urta” ООО | B40: 0039
A41: “Trust Insurance” ООО | B41: 0040
A42: “Azimuth Insurance Company” ООО | B42: 0041

Sheet param (hidden)
A1: 1806_4_uz
A2: =MAX('1806_4_uz'!B:B) -> 30 | B2: max
A3: ="C"&(A2+8)&":F"&(A2+8) -> C38:F38 | B3: delete_line
A4: ="B"&(A2+8) -> B38 | B4: copy_line
A6: 1806_5_uz
A7: =MAX('1806_5_uz'!B:B) -> 30 | B7: max
A8: ="C"&(A7+8)&":H"&(A7+8) -> C38:H38 | B8: delete_line
A9: ="B"&(A7+8) -> B38 | B9: copy_line
A11: 1806_6_uz
A12: =MAX('1806_6_uz'!B:B) -> 30 | B12: max
A13: ="C"&(A12+15)&":H"&(A12+15) -> C45:H45 | B13: delete_line
A14: ="B"&(A12+15) -> B45 | B14: copy_line
A16: 1806_4_ru
A17: =MAX(#REF!) ->  | B17: max
A18: ="C"&(A17+8)&":F"&(A17+8) ->  | B18: delete_line
A19: ="B"&(A17+8) ->  | B19: copy_line
A21: 1806_5_ru
A22: =MAX(#REF!) ->  | B22: max
A23: ="C"&(A22+8)&":H"&(A22+8) ->  | B23: delete_line
A24: ="B"&(A22+8) ->  | B24: copy_line
A26: 1806_6_ru
A27: =MAX(#REF!) ->  | B27: max
A28: ="C"&(A27+15)&":H"&(A27+15) ->  | B28: delete_line
A29: ="B"&(A27+15) ->  | B29: copy_line

Sheet Жадваллар рўйхати (hidden)
A1: Жадваллар рўйхати
C5: 1806 | E5: Суғурталовчилар ва қайта суғурталовчиларнинг тўлов қобилияти тўғрисидаги низом
E6: 1806_1 | F6: Умумий суғурта соҳасида ёки фақат қайта суғурта қилиш фаолиятини амалга оширадиган суғурталовчининг тўлов қобилияти маржасининг етарлилиги нормативи ҳисоб-китоби
E8: 1806_2 | F8: Ҳаётни суғурта қилиш соҳасида суғурта фаолиятини амалга оширадиган суғурталовчининг тўлов қобилияти маржасининг етарлилиги нормативи ҳисоб-китоби
E10: 1806_3 | F10: Суғурталовчи/қайта суғурталовчининг алоҳида таваккалчиликлар бўйича мажбуриятларнинг йўл қўйиладиган энг кўп миқдори ва мажбуриятлар жамининг йўл қўйиладиган энг кўп миқдори нормативларига риоя қилганлиги ҳамда суғурталовчи (қайта суғурталовчи) активларини жойлаштиришга оид талабларга риоя қилинганлиги тўғрисида маълумотлар
E12: 1806_4 | F12: Суғурталовчи/қайта суғурталовчининг ҳар қандай битта юридик шахснинг устав капиталида иштирок этиш улуши ҳисоб-китоби
E14: 1806_5 | F14: Суғурталовчи/қайта суғурталовчининг битта боғлиқ шахс ёки барча боғлиқ шахсларда жойлаштирилган активлари суммаси ҳисоб-китоби
E16: 1806_6 | F16: Суғурталовчи/қайта суғурталовчининг қайта суғурта қилиш операцияларига оид талабларга риоя қилганлиги тўғрисида маълумотлар
C18: 1882 | E18: Суғурталовчиларнинг суғурта захиралари тўғрисидаги низом
E19: 1882_1 | F19: Транспорт воситалари эгаларининг фуқаролик жавобгарлигини мажбурий суғурта қилиш бўйича барқарорлаштириш захирасини ҳисоблаш мақсадида даромадлар, харажатлар ва молиявий натижаларнинг ҳисоб-китоби
E21: 1882_2 | F21: Иш берувчининг фуқаролик жавобгарлигини мажбурий суғурта қилиш бўйича барқарорлаштириш захирасини ҳисоблаш мақсадида даромадлар, харажатлар ва молиявий натижаларнинг ҳисоб-китоби
E23: 1882_3 | F23: Ташувчининг фуқаролик жавобгарлигини мажбурий суғурта қилиш бўйича барқарорлаштириш захирасини ҳисоблаш мақсадида даромадлар, харажатлар ва молиявий натижаларнинг ҳисоб-китоби
E25: 1882_4 | F25: Суғурта захираларининг умумий миқдори
E27: 1882_5 | F27: Активлар таркиби тўғрисида маълумот
C29: 1945 | E29: Суғурталовчиларнинг молиявий ҳисобот шаклларини ва уларни тўлдириш бўйича қоидаларни тасдиқлаш тўғрисидаги Молия вазирлиги буйруғи
E30: 1945_1 | F30: Бухгалтерия баланси — 1-сонли шакл — суғурта
E32: 1945_2 | F32: Балансдан ташқари счётларда ҳисобга олинадиган қийматликларнинг мавжудлиги тўғрисида маълумотнома
E34: 1945_3 | F34: Молиявий натижалар тўғрисидаги ҳисобот — 2-сонли шакл — суғурта
E36: 1945_4 | F36: Бюджетга тўловлар тўғрисида маълумотнома
E38: 1945_5 | F38: Пул оқимлари тўғрисидаги ҳисобот — 4-сонли шакл — суғурта
E40: 1945_6 | F40: Чет эл валютасидаги пул маблағларининг ҳаракати тўғрисида маълумотнома
E42: 1945_7 | F42: Хусусий капитал тўғрисидаги ҳисобот — 5-сонли шакл — суғурта

Sheet Список (hidden)
A1: Код приложения | B1: Регистрационный номер документа | C1: Наименование документа | D1: Номер приложения | E1: Наименование приложения
A2: =B2&"_"&D2 -> 1806_1 | B2: 1806 | C2: Положение о платежеспособности страховщиков и перестраховщиков | D2: 1 | E2: Расчет норматива достаточности маржи платежеспособности страховщика, осуществляющего деятельность в отрасли общего страхования (исключительно по перестрахованию)
A3: 1806_2 | B3: 1806 | C3: Положение о платежеспособности страховщиков и перестраховщиков | D3: 2 | E3: Расчет норматива достаточности маржи платежеспособности страховщика, осуществляющего деятельность в отрасли страхования жизни
A4: 1806_3 | B4: 1806 | C4: Положение о платежеспособности страховщиков и перестраховщиков | D4: 3 | E4: Сведения о соблюдении требований по предельно допустимому размеру обязательств по отдельным рискам и совокупному размеру обязательств страховщика (перестраховщика) и размещению активов страховщика (перестраховщика)
A5: 1806_4 | B5: 1806 | C5: Положение о платежеспособности страховщиков и перестраховщиков | D5: 4 | E5: Расчет по долевому участию в уставном капитале любого одного юридического лица
A6: 1806_5 | B6: 1806 | C6: Положение о платежеспособности страховщиков и перестраховщиков | D6: 5 | E6: Расчет по сумме активов, размещенных у одного связанного лица или у всех связанных лиц страховщика/перестраховщика
A7: 1806_6 | B7: 1806 | C7: Положение о платежеспособности страховщиков и перестраховщиков | D7: 6 | E7: Сведения о соблюдении требований по перестраховочным операциям страховщика/перестраховщика
A8: 1882_1 | B8: 1882 | C8: Положение о страховых резервах страховщиков | D8: 1 | E8: Расчет доходов, расходов и финансового результата для целей расчета стабилизационного резерва по обязательному страхованию гражданской ответственности владельцев транспортных средств
A9: 1882_2 | B9: 1882 | C9: Положение о страховых резервах страховщиков | D9: 2 | E9: Расчет доходов, расходов и финансового результата для целей расчета стабилизационного резерва по обязательному страхованию гражданской ответственности работодателя
A10: 1882_3 | B10: 1882 | C10: Положение о страховых резервах страховщиков | D10: 3 | E10: Расчет доходов, расходов и финансового результата для целей расчета стабилизационного резерва по обязательному страхованию гражданской ответственности перевозчика
A11: 1882_4 | B11: 1882 | C11: Положение о страховых резервах страховщиков | D11: 4 | E11: Общая величина страховых резервов
A12: 1882_5 | B12: 1882 | C12: Положение о страховых резервах страховщиков | D12: 5 | E12: Сведения о сотаве активов
A13: 1945_1 | B13: 1945 | C13: Формы финансовой отчетности страховщиков и правила по их заполнению | D13: 1 | E13: Бухгалтерский баланс — форма № 1 — страхование
A14: 1945_2 | B14: 1945 | C14: Формы финансовой отчетности страховщиков и правила по их заполнению | D14: 2 | E14: Справка о наличии ценностей, учитываемых на забалансовых счетах
A15: 1945_3 | B15: 1945 | C15: Формы финансовой отчетности страховщиков и правила по их заполнению | D15: 3 | E15: Отчет о финансовых результатах — форма № 2 — страхование
A16: 1945_4 | B16: 1945 | C16: Формы финансовой отчетности страховщиков и правила по их заполнению | D16: 4 | E16: Справка о платежах в бюджет
A17: 1945_5 | B17: 1945 | C17: Формы финансовой отчетности страховщиков и правила по их заполнению | D17: 5 | E17: Отчет о денежных потоках — форма № 4 — страхование
A18: 1945_6 | B18: 1945 | C18: Формы финансовой отчетности страховщиков и правила по их заполнению | D18: 6 | E18: Справка о движении денежных средств в иностранной валюте
A19: 1945_7 | B19: 1945 | C19: Формы финансовой отчетности страховщиков и правила по их заполнению | D19: 7 | E19: Отчет о собственном капитале — форма № 5 — страхование

Sheet 1945_1_ru
B1: Рег. номер | C1: =VLOOKUP($C$5,Список!$A:$E,2,FALSE) -> 1945 | F1: Список таблиц
B2: Наим. док-та | C2: =VLOOKUP($C$5,Список!$A:$E,3,FALSE) -> Формы финансовой отчетности страховщиков и правила по их заполнению
B3: Номер прил-я | C3: =VLOOKUP($C$5,Список!$A:$E,4,FALSE) -> 1
B4: Наим. прил-я | C4: =VLOOKUP($C$5,Список!$A:$E,5,FALSE) -> Бухгалтерский баланс — форма № 1 — страхование
B5: Код прил-я | C5: 1945_1
B7: Наименование показателей | E7: Код стр. | F7: На начало отчетного периода | G7: На конец отчетного периода
B8: Актив
B9: I. Долгосрочные активы
B10: Основные средства:
B11: Первоначальная (восстановительная) стоимость (0100, 0300) | E11: 10 | F11: 15,047,957.00 | G11: 11,007,788.00
B12: Сумма износа (0200) | E12: 11 | F12: 3,325,608.00 | G12: 3,130,598.00
B13: Остаточная (балансовая) стоимость (стр. 010 – 011) | E13: 12 | F13: =F11-F12 -> 11,722,349.00 | G13: =G11-G12 -> 7,877,190.00
B14: Нематериальные активы:
B15: Первоначальная стоимость (0400) | E15: 20 | F15: 890.00 | G15: 890.00
B16: Сумма амортизации (0500) | E16: 21 | F16: 890.00 | G16: 890.00
B17: Остаточная (балансовая) стоимость (стр. 020 – 021) | E17: 22 | F17: 0 | G17: 0
B18: Долгосрочные инвестиции, всего (стр.040+050+060+070+080), в том числе: | E18: 30 | F18: =SUM(F19:F23) -> 3,321,386.00 | G18: =SUM(G19:G23) -> 2,566,099.00
B19: Ценные бумаги (0610) | E19: 40 | F19: 1,952,014.00 | G19: 2,513,088.00
B20: Инвестиции в дочерние хозяйственные общества (0620) | E20: 50
B21: Инвестиции в зависимые хозяйственные общества (0630) | E21: 60
B22: Инвестиции в предприятия с иностранным капиталом (0640) | E22: 70
B23: Прочие долгосрочные инвестиции (0690) | E23: 80 | F23: 1,369,372.00 | G23: 53,011.00
B24: Оборудование к установке (0700) | E24: 90
B25: Капитальные вложения (0800) | E25: 100 | F25: 35,821.00 | G25: 0
B26: Долгосрочная дебиторская задолженность (0910, 0920, 0930, 0940) | E26: 110 | F26: 8,272,836.00 | G26: 14,310,057.00
B27: Долгосрочные отсроченные расходы (0950, 0960, 0990) | E27: 120
B28: Итого по разделу I (стр. 012+022+030+090+100+110+120) | E28: 130 | F28: =F13+F17+F18+F25+F26 -> 23,352,392.00 | G28: =G13+G17+G18+G26 -> 24,753,346.00
B29: II. Текущие активы
B30: Товарно - материальные запасы, всего (стр.150+160), в том числе: | E30: 140 | F30: 50,317.00 | G30: 46,984.00
B31: Материалы (1000, 1500, 1600) | E31: 150 | F31: 50,317.00 | G31: 46,984.00
B32: Незавершенные услуги (2000, 2300, 2700) | E32: 160
B33: Расходы будущих периодов (3100) | E33: 170 | F33: 1,122.00 | G33: 14,555.00
B34: Отсроченные расходы (3200) | E34: 180
B35: Дебиторы, всего (стр. 200 + 310 + 320 + 330 + 340 + 350 + 360 + 370 + 380 + 390) | E35: 190 | F35: 468,721.00 | G35: 555,537.00
B36: из нее: просроченная* | E36: 191
B37: Счета к оплате, всего (стр. 210 + 220 – 400) | E37: 200 | F37: 417,843.00 | G37: 315,238.00
B38: Задолженность покупателей и заказчиков (4010, 4020) | E38: 210 | F38: 1,930.00 | G38: 1,930.00
B39: Дебиторы по страховым операциям, всего (стр. 230 + 240 + 250 + 260 + 270 + 280 + 290 + 300) | E39: 220 | F39: 415,913.00 | G39: 313,308.00 | H39: 3
B40: Задолженность страхователей (4030) | E40: 230 | F40: 415,913.00 | G40: 313,308.00
B41: Задолженность страховых агентов и брокеров (4040) | E41: 240 | F41: 0
B42: Задолженность перестрахователей (4050) | E42: 250
B43: Задолженность перестраховщиков по комиссионным вознаграждениям, тантьемам и другим вознаграждениям (4051) | E43: 260
B44: Задолженность перестраховщиков (4060) | E44: 270
B45: Ссуды по страхованию жизни (4070) | E45: 280
B46: Депо убытков страховщика у других страховщиков (4080) | E46: 290
B47: Депо премий страховщика у других страховщиков (4090) | E47: 300
B48: Задолженность обособленных подразделений (4110) | E48: 310
B49: Задолженность дочерних и зависимых хозяйственных обществ (4120) | E49: 320
B50: Авансы, выданные персоналу (4200) | E50: 330 | F50: 108.00 | G50: 108.00
B51: Авансы, выданные поставщикам и подрядчикам (4300) | E51: 340 | F51: 34,025.00 | G51: 73,510.00
B52: Авансовые платежи в бюджет (4400) | E52: 350 | G52: 166,681.00
B53: Авансовые платежи в государственные целевые фонды и по страхованию (4500) | E53: 360 | F53: 0 | G53: 0
B54: Задолженность учредителей по вкладам в уставный капитал (4600) | E54: 370
B55: Задолженность персонала по прочим операциям (4700) | E55: 380
B56: Прочие дебиторские задолженности (4800) | E56: 390 | F56: 16,745.00 | G56: 0
B57: Резервы по сомнительным долгам (4900) | E57: 400
B58: Денежные средства, всего (стр. 420 + 430 + 440 + 450), в том числе: | E58: 410 | F58: =F60+F61+F62 -> 691,312.00 | G58: =G60+G61+G62 -> 792,949.00
B59: Денежные средства в кассе (5000) | E59: 420
B60: Денежные средства на расчетном счете (5100) | E60: 430 | F60: 562,711.00 | G60: 778,148.00
B61: Денежные средства в иностранной валюте (5200) | E61: 440 | F61: 122,925.00 | G61: 4,641.00
B62: Прочие денежные средства и эквиваленты (5500, 5600, 5700) | E62: 450 | F62: 5,676.00 | G62: 10,160.00
B63: Краткосрочные инвестиции (5800) | E63: 460 | F63: 0
B64: Прочие текущие активы (5900) | E64: 470
B65: Итого по разделу II (стр. 140 + 170 + 180 + 190 + 410 + 460 + 470) | E65: 480 | F65: 1,211,472.00 | G65: =G30+G33+G35+G58 -> 1,410,025.00
B66: Всего по активу баланса (стр.130 + 480) | E66: 490 | F66: 24,563,864.00 | G66: =G28+G65 -> 26,163,371.00
B67: Пассив
B68: I. Источники собственных средств
B69: Уставный капитал (8300) | E69: 500 | F69: 15,000,471.00 | G69: 20,000,000.00
B70: Добавленный капитал (8400) | E70: 510
B71: Резервный капитал (8500) | E71: 520 | F71: 2,690,422.00 | G71: 2,690,141.00
B72: Выкупленные собственные акции (8600) | E72: 530
B73: Нераспределенная прибыль (непокрытый убыток) (8700) | E73: 540 | F73: 3,111,501.00 | G73: 8,365.00
B74: Целевые поступления (8800) | E74: 550
B75: Резервы предстоящих расходов и платежей (8900) | E75: 560
B76: Итого по разделу I (стр. 500 + 510 + 520 – 530 + 540 + 550 + 560) | E76: 570 | F76: 20,802,394.00 | G76: =SUM(G69:G74) -> 22,698,506.00
B77: II. Страховые резервы
B78: Страховые резервы, всего (стр. 590 + 600 + 610 + 620 + 630 + 640 + 650 + 660) | E78: 580 | F78: 3,040,906.00 | G78: 1,444,446.00
B79: Резерв незаработанной премии (8010) | E79: 590 | F79: 2,819,556.00 | G79: 1,211,083.00
B80: Резерв произошедших, но не заявленных убытков (8020) | E80: 600 | F80: 221,350.00 | G80: 233,363.00
B81: Резерв заявленных, но неурегулированных убытков (8030) | E81: 610
B82: Резерв предупредительных мероприятий (8040) | E82: 620
B83: Резерв несоответствия активов (8050) | E83: 630
B84: Резерв катастроф (8060) | E84: 640
B85: Резерв колебания убыточности (8070) | E85: 650
B86: Резервы по страхованию жизни (8090) | E86: 660
B87: Доля перестраховщиков в страховых резервах, всего (стр. 680 + 690 + 700 + 710) | E87: 670 | F87: 2,048,224.00 | G87: 585,185.00
B88: Доля перестраховщиков в резерве незаработанной премии (8110) | E88: 680 | F88: 1,838,053.00 | G88: 375,452.00
B89: Доля перестраховщиков в резерве заявленных, но неурегулированных убытков (8120) | E89: 690
B90: Доля перестраховщиков в резерве произошедших, но не заявленных убытков (8130) | E90: 700 | F90: 210,171.00 | G90: 209,733.00
B91: Доля перестраховщиков в резервах по страхованию жизни (8140) | E91: 710
B92: Итого по разделу II (стр.580 – 670) | E92: 720 | F92: 992,682.00 | G92: =G78-G87 -> 859,261.00
B93: III. Обязательства
B94: Долгосрочные обязательства, всего (стр. 740 + 750 + 850 + 860 + 870 + 880 + 890 + 900 + 910 + 920) | E94: 730 | F94: 2,500,000.00 | G94: 2,500,000.00
B95: в том числе: долгосрочная кредиторская задолженность (стр. 740 + 760 + 770 + 780 + 790 + 800 + 820 + 830 + 850 + 870 + 890 + 920) | E95: 731
B96: Долгосрочная задолженость поставщикам и подрядчикам (7010, 7020) | E96: 740
B97: Долгосрочные обязательства по страховым операциям, всего (стр. 760 + 770 + 780 + 790 + 800 + 810 + 820 + 830) | E97: 750
B98: Долгосрочная задолженность подрядчикам, осуществляющим предупредительные мероприятия (7011) | E98: 760
B99: Долгосрочная задолженность страхователям (7030) | E99: 770
B100: Долгосрочная задолженность страховым агентам и брокерам (7040) | E100: 780
B101: Долгосрочная задолженность перестрахователям (7050) | E101: 790
B102: Долгосрочная задолженность перестраховщикам (7060) | E102: 800
B103: Депо премии перестраховщиков (7070) | E103: 810
B104: Долгосрочная задолженность перестрахователям по комиссионным вознаграждениям, тантьемам и другим вознаграждениям (7080) | E104: 820
B105: Долгосрочная задолженность актуариям, аджастерам, сюрвейерам и ассистансам (7090) | E105: 830
B106: Долгосрочная задолженность обособленным подразделениям (7110) | E106: 840
B107: Долгосрочная задолженность дочерним и зависимым хозяйственным обществам (7120) | E107: 850
B108: Долгосрочные отсроченные доходы (7210, 7220, 7230) | E108: 860
B109: Долгосрочные отсроченные обязательства по налогам и другим обязательным платежам (7240) | E109: 870
B110: Прочие долгосрочные отсроченные обязательства (7250, 7290) | E110: 880
B111: Авансы, полученные от покупателей и заказчиков (7300) | E111: 890
B112: Долгосрочные банковские кредиты (7810) | E112: 900
B113: Долгосрочные займы (7820, 7830, 7840) | E113: 910 | F113: 2,500,000.00 | G113: 2,500,000.00
B114: Прочие долгосрочные кредиторские задолженности (7900) | E114: 920
B115: Текущие обязательства, всего (стр. 940 + 950 + 1050 + 1060 + 1070 + 1080 + 1090 + 1100 + 1110 + 1120 + + 1130 + 1140 + 1150 + 1160 + 1170 + 1180) | E115: 930 | F115: 268,788.00 | G115: =G116 -> 105,604.00
B116: в том числе: текущая кредиторская задолженность (стр. 940 + 960 + 970 + 980 + 990 + 1000 + 1020 + 1030 + 1050 + 1070 + 1090 + 1100 + 1110 + 1120 + 1130 + 1140 + 1180) | E116: 931 | F116: 268,788.00 | G116: =G118+G119+G133+G134+G136+G137+G138+G142 -> 105,604.00
B117: из нее: просроченная текущая кредиторская задолженность* | E117: 932
B118: Задолженность поставщикам и подрядчикам (6010, 6020) | E118: 940 | F118: 117,737.00 | G118: 49,790.00
B119: Обязательства по страховым операциям, всего (стр. 960 + 970 + 980 + 990 + 1000 + 1010 + 1020 + 1030) | E119: 950 | F119: 35,800.00 | G119: =SUM(G120:G129) -> 5,657.00
B120: Задолженность подрядчикам, осуществляющим предупредительные мероприятия (6011) | E120: 960
B121: Задолженность страхователям (6030) | E121: 970 | F121: 30,719.00 | G121: 5,657.00
B122: Задолженность страховым агентам и брокерам (6040) | E122: 980 | F122: 3,862.00 | G122: 0
B123: Задолженность перестрахователям (6050) | E123: 990
B124: Задолженность перестраховщикам (6060) | E124: 1000 | F124: 1,219.00 | G124: 0
B125: Депо премии перестраховщиков (6070) | E125: 1010
B126: Задолженность перестрахователям по комиссионным вознаграждениям, тантьемам и другим вознаграждениям (6080) | E126: 1020
B127: Задолженность актуариям, аджастерам, сюрвейерам и ассистансам (6090) | E127: 1030
B128: Задолженность обособленным подразделениям (6110) | E128: 1040
B129: Задолженность дочерним и зависимым хозяйственным обществам (6120) | E129: 1050
B130: Отсроченные доходы (6210, 6220, 6230) | E130: 1060
B131: Отсроченные обязательства по налогам и другим обязательным платежам (6240) | E131: 1070
B132: Прочие отсроченные обязательства (6250, 6290) | E132: 1080
B133: Полученные авансы (6300) | E133: 1090 | F133: 7,076.00 | G133: 5,440.00
B134: Задолженность по платежам в бюджет (6400) | E134: 1100 | F134: 46,447.00 | G134: 0
B135: Задолженность по страхованию (6510) | E135: 1110
B136: Задолженность по платежам в государственные целевые фонды (6520) | E136: 1120 | F136: 9,902.00 | G136: 1,528.00
B137: Задолженность учредителям (6600) | E137: 1130 | F137: 104.00 | G137: 575.00
B138: Задолженность по оплате труда (6700) | E138: 1140 | F138: 48,178.00 | G138: 39,070.00
B139: Краткосрочные банковские кредиты (6810) | E139: 1150
B140: Краткосрочные займы (6820, 6830, 6840) | E140: 1160
B141: Текущая часть долгосрочных обязательств (6950) | E141: 1170
B142: Прочие кредиторские задолженности (6900 кроме 6950) | E142: 1180 | F142: 3,544.00 | G142: 3,544.00
B143: Итого по разделу III (стр.730 + 930) | E143: 1190 | F143: 2,768,788.00 | G143: =G94+G115 -> 2,605,604.00
B144: Всего по пассиву баланса (стр. 570 + 720 + 1190) | E144: 1200 | F144: 24,563,864.00 | G144: =G76+G92+G143 -> 26,163,371.00
B146: * При наличии просроченной дебиторской и кредиторской задолженности их расшифровка приводится согласно приложению к Бухгалтерскому балансу — форма № 1 — страхование.

Sheet 1945_3_ru
B1: Рег. номер | C1: =VLOOKUP($C$5,Список!$A:$E,2,FALSE) -> 1945 | F1: Список таблиц
B2: Наим. док-та | C2: =VLOOKUP($C$5,Список!$A:$E,3,FALSE) -> Формы финансовой отчетности страховщиков и правила по их заполнению
B3: Номер прил-я | C3: =VLOOKUP($C$5,Список!$A:$E,4,FALSE) -> 3
B4: Наим. прил-я | C4: =VLOOKUP($C$5,Список!$A:$E,5,FALSE) -> Отчет о финансовых результатах — форма № 2 — страхование
B5: Код прил-я | C5: 1945_3
B7: Наименование показателей | E7: Код строки | F7: За соответствующий период прошлого года | H7: За отчетный период
F8: Доходы (прибыль) | G8: Расходы (убытки) | H8: Доходы (прибыль) | I8: Расходы (убытки)
B9: Доходы от оказания страховых услуг, (стр. 011 – 012 + 013 + / – 014 + / – 015 + / – 016 + / – 017 + / – 018 + 019), в том числе: | E9: 10 | F9: =F10-G11+F13+F15 -> 1,647,489.00 | H9: =H10-I11+H13-I15 -> 925,738.00
B10: Страховые премии по прямому страхованию и сострахованию (в части доли страховщика, установленной в договоре сострахования) | E10: 11 | F10: 2,034,329.00 | H10: 793,013.00
B11: Страховые премии по договорам, переданным в перестрахование | E11: 12 | G11: 1,331,608.00 | I11: 696.00
B12: Страховые премии по договорам, принятым в перестрахование | E12: 13
B13: Результат изменения резерва незаработанной премии, скорректированный на долю перестраховщиков в резерве незаработанной премии | E13: 14 | F13: 678,933.00 | G13: 0 | H13: 145,872.00
B14: Результат изменения резерва заявленных, но не урегулированных убытков, скорректированный на долю перестраховщиков в резерве заявленных, но не урегулированных убытков | E14: 15
B15: Результат изменения резерва произошедших, но не заявленных убытков, скорректированный на долю перестраховщиков в резерве произошедших, но не заявленных убытков | E15: 16 | F15: 265,835.00 | H15: 0 | I15: 12,451.00
B16: Результат изменения резервов по страхованию жизни, скорректированный на долю перестраховщиков в резервах по страхованию жизни | E16: 17
B17: Результат изменения других технических резервов, скорректированный на долю перестраховщиков в соответствующих резервах | E17: 18
B18: Другие доходы от оказания страховых услуг | E18: 19 | F18: 0 | H18: 0
B19: Доходы от оказания услуг посредника | E19: 20
B20: Доходы по возмещениям доли убытков по перестрахованию | E20: 30
B21: Доходы по комиссионным вознаграждениям, тантьемам и сборам по перестрахованию | E21: 40
B22: Доходы от оказания услуг сюрвейера и аджастера | E22: 50
B23: Чистая выручка от оказания страховых услуг (стр. 010 + 020 + 030 + 040 + 050) | E23: 60 | F23: =F9 -> 1,647,489.00 | H23: =H9 -> 925,738.00
B24: Себестоимость оказанных страховых услуг | E24: 70 | G24: 382,992.00 | I24: 192,194.00
B25: Валовая прибыль (убыток) от оказания страховых услуг (стр.060 – 070) | E25: 80 | F25: =F23-G24 -> 1,264,497.00 | H25: =H23-I24 -> 733,544.00
B26: Расходы периода, всего (стр.100 + 110 + 120 + 130), в том числе: | E26: 90 | G26: =SUM(G27:G29) -> 1,366,941.00 | I26: 1,202,114.00
B27: Расходы по реализации | E27: 100 | G27: 12,327.00 | I27: 3,172.00
B28: Административные расходы | E28: 110 | G28: 1,283,622.00 | I28: 1,155,443.00
B29: Прочие операционные расходы | E29: 120 | G29: 70,992.00 | I29: 43,499.00
B30: Расходы отчетного периода, исключаемые из налогооблагаемой базы в будущем | E30: 130
B31: Прочие доходы от основной деятельности | E31: 140 | F31: 919,634.00 | H31: 638,803.00
B32: Прибыль (убыток) от основной деятельности (стр. 080 – 090 + 140) | E32: 150 | F32: =F25-G26+F31 -> 817,190.00 | H32: =H25-I26+H31 -> 170,233.00
B33: Доходы от финансовой деятельности, всего (стр.170 + 180 + 190 + 200 + 210), в том числе: | E33: 160 | F33: =SUM(F34:F38) -> 103,308.00 | H33: =SUM(H34:H37) -> 88,378.00
B34: Доходы в виде дивидендов | E34: 170 | F34: 5.00 | H34: 0
B35: Доходы в виде процентов | E35: 180 | F35: 93,752.00 | H35: 22,904.00
B36: Доходы от долгосрочной аренды (лизинга) | E36: 190
B37: Доходы от валютных курсовых разниц | E37: 200 | F37: 9,551.00 | H37: 65,474.00
B38: Прочие доходы от финансовой деятельности | E38: 210 | F38: 0
B39: Расходы по финансовой деятельности, всего (стр.230 + 240 + 250 + 260), в том числе: | E39: 220 | G39: =G42 -> 26,136.00 | I39: 246,843.00
B40: Расходы в виде процентов | E40: 230 | I40: 230,137.00
B41: Расходы в виде процентов по долгосрочной аренде (лизингу) | E41: 240
B42: Убытки от валютных курсовых разниц | E42: 250 | G42: 26,136.00 | I42: 16,703.00
B43: Прочие расходы по финансовой деятельности | E43: 260 | I43: 3.00
B44: Прибыль (убыток) от общехозяйственной деятельности (стр. 150 + 160 – 220) | E44: 270 | F44: =F32+F33-G39 -> 894,362.00 | H44: =H32+H33-I39 -> 11,768.00
B45: Чрезвычайные прибыли и убытки | E45: 280
B46: Прибыль (убыток) до уплаты налога на прибыль (стр.270 + / – 280) | E46: 290 | F46: =F44 -> 894,362.00 | H46: =H44 -> 11,768.00
B47: Налог на прибыль | E47: 300 | F47: 0 | G47: 134,153.00 | I47: 3,403.00
B48: Прочие налоги и другие обязательные платежи от прибыли | E48: 310
B49: Чистая прибыль (убыток) отчетного периода (стр.290 – 300 – 310) | E49: 320 | F49: =F46-G47 -> 760,209.00 | H49: =H46-I47 -> 8,365.00

Sheet Жадваллар (hidden)
A1: Илова коди | B1: Ҳужжат қайд рақами | C1: Ҳужжат номи | D1: Илова рақами | E1: Илова номи
A2: =B2&"_"&D2 -> 1806_1 | B2: 1806 | C2: Суғурталовчилар ва қайта суғурталовчиларнинг тўлов қобилияти тўғрисидаги низом | D2: 1 | E2: Умумий суғурта соҳасида ёки фақат қайта суғурта қилиш фаолиятини амалга оширадиган суғурталовчининг тўлов қобилияти маржасининг етарлилиги нормативи ҳисоб-китоби
A3: 1806_2 | B3: 1806 | C3: Суғурталовчилар ва қайта суғурталовчиларнинг тўлов қобилияти тўғрисидаги низом | D3: 2 | E3: Ҳаётни суғурта қилиш соҳасида суғурта фаолиятини амалга оширадиган суғурталовчининг тўлов қобилияти маржасининг етарлилиги нормативи ҳисоб-китоби
A4: 1806_3 | B4: 1806 | C4: Суғурталовчилар ва қайта суғурталовчиларнинг тўлов қобилияти тўғрисидаги низом | D4: 3 | E4: Суғурталовчи/қайта суғурталовчининг алоҳида таваккалчиликлар бўйича мажбуриятларнинг йўл қўйиладиган энг кўп миқдори ва мажбуриятлар жамининг йўл қўйиладиган энг кўп миқдори нормативларига риоя қилганлиги ҳамда суғурталовчи (қайта суғурталовчи) активларини жойлаштиришга оид талабларга риоя қилинганлиги тўғрисида маълумотлар
A5: 1806_4 | B5: 1806 | C5: Суғурталовчилар ва қайта суғурталовчиларнинг тўлов қобилияти тўғрисидаги низом | D5: 4 | E5: Суғурталовчи/қайта суғурталовчининг ҳар қандай битта юридик шахснинг устав капиталида иштирок этиш улуши ҳисоб-китоби
A6: 1806_5 | B6: 1806 | C6: Суғурталовчилар ва қайта суғурталовчиларнинг тўлов қобилияти тўғрисидаги низом | D6: 5 | E6: Суғурталовчи/қайта суғурталовчининг битта боғлиқ шахс ёки барча боғлиқ шахсларда жойлаштирилган активлари суммаси ҳисоб-китоби
A7: 1806_6 | B7: 1806 | C7: Суғурталовчилар ва қайта суғурталовчиларнинг тўлов қобилияти тўғрисидаги низом | D7: 6 | E7: Суғурталовчи/қайта суғурталовчининг қайта суғурта қилиш операцияларига оид талабларга риоя қилганлиги тўғрисида маълумотлар
A8: 1882_1 | B8: 1882 | C8: Суғурталовчиларнинг суғурта захиралари тўғрисидаги низом | D8: 1 | E8: Транспорт воситалари эгаларининг фуқаролик жавобгарлигини мажбурий суғурта қилиш бўйича барқарорлаштириш захирасини ҳисоблаш мақсадида даромадлар, харажатлар ва молиявий натижаларнинг ҳисоб-китоби
A9: 1882_2 | B9: 1882 | C9: Суғурталовчиларнинг суғурта захиралари тўғрисидаги низом | D9: 2 | E9: Иш берувчининг фуқаролик жавобгарлигини мажбурий суғурта қилиш бўйича барқарорлаштириш захирасини ҳисоблаш мақсадида даромадлар, харажатлар ва молиявий натижаларнинг ҳисоб-китоби
A10: 1882_3 | B10: 1882 | C10: Суғурталовчиларнинг суғурта захиралари тўғрисидаги низом | D10: 3 | E10: Ташувчининг фуқаролик жавобгарлигини мажбурий суғурта қилиш бўйича барқарорлаштириш захирасини ҳисоблаш мақсадида даромадлар, харажатлар ва молиявий натижаларнинг ҳисоб-китоби
A11: 1882_4 | B11: 1882 | C11: Суғурталовчиларнинг суғурта захиралари тўғрисидаги низом | D11: 4 | E11: Суғурта захираларининг умумий миқдори
A12: 1882_5 | B12: 1882 | C12: Суғурталовчиларнинг суғурта захиралари тўғрисидаги низом | D12: 5 | E12: Активлар таркиби тўғрисида маълумот
A13: 1945_1 | B13: 1945 | C13: Суғурталовчиларнинг молиявий ҳисобот шаклларини ва уларни тўлдириш бўйича қоидаларни тасдиқлаш тўғрисидаги Молия вазирлиги буйруғи | D13: 1 | E13: Бухгалтерия баланси — 1-сонли шакл — суғурта
A14: 1945_2 | B14: 1945 | C14: Суғурталовчиларнинг молиявий ҳисобот шаклларини ва уларни тўлдириш бўйича қоидаларни тасдиқлаш тўғрисидаги Молия вазирлиги буйруғи | D14: 2 | E14: Балансдан ташқари счётларда ҳисобга олинадиган қийматликларнинг мавжудлиги тўғрисида маълумотнома
A15: 1945_3 | B15: 1945 | C15: Суғурталовчиларнинг молиявий ҳисобот шаклларини ва уларни тўлдириш бўйича қоидаларни тасдиқлаш тўғрисидаги Молия вазирлиги буйруғи | D15: 3 | E15: Молиявий натижалар тўғрисидаги ҳисобот — 2-сонли шакл — суғурта
A16: 1945_4 | B16: 1945 | C16: Суғурталовчиларнинг молиявий ҳисобот шаклларини ва уларни тўлдириш бўйича қоидаларни тасдиқлаш тўғрисидаги Молия вазирлиги буйруғи | D16: 4 | E16: Бюджетга тўловлар тўғрисида маълумотнома
A17: 1945_5 | B17: 1945 | C17: Суғурталовчиларнинг молиявий ҳисобот шаклларини ва уларни тўлдириш бўйича қоидаларни тасдиқлаш тўғрисидаги Молия вазирлиги буйруғи | D17: 5 | E17: Пул оқимлари тўғрисидаги ҳисобот — 4-сонли шакл — суғурта
A18: 1945_6 | B18: 1945 | C18: Суғурталовчиларнинг молиявий ҳисобот шаклларини ва уларни тўлдириш бўйича қоидаларни тасдиқлаш тўғрисидаги Молия вазирлиги буйруғи | D18: 6 | E18: Чет эл валютасидаги пул маблағларининг ҳаракати тўғрисида маълумотнома
A19: 1945_7 | B19: 1945 | C19: Суғурталовчиларнинг молиявий ҳисобот шаклларини ва уларни тўлдириш бўйича қоидаларни тасдиқлаш тўғрисидаги Молия вазирлиги буйруғи | D19: 7 | E19: Хусусий капитал тўғрисидаги ҳисобот — 5-сонли шакл — суғурта

Sheet 1806_1_uz (hidden)
B1: Қайд рақами | C1: =VLOOKUP($C$5,Жадваллар!$A:$E,2,FALSE) -> 1806 | D1: Жадваллар рўйхати
B2: Ҳужжат номи | C2: =VLOOKUP($C$5,Жадваллар!$A:$E,3,FALSE) -> Суғурталовчилар ва қайта суғурталовчиларнинг тўлов қобилияти тўғрисидаги низом
B3: Илова рақами | C3: =VLOOKUP($C$5,Жадваллар!$A:$E,4,FALSE) -> 1
B4: Илова номи | C4: =VLOOKUP($C$5,Жадваллар!$A:$E,5,FALSE) -> Умумий суғурта соҳасида ёки фақат қайта суғурта қилиш фаолиятини амалга оширадиган суғурталовчининг тўлов қобилияти маржасининг етарлилиги нормативи ҳисоб-китоби
B5: Илова коди | C5: 1806_1
B7: Т/р | C7: Нормативнинг номи | D7: Миқдор (минг сўм)
B8: 1. | C8: Суғурта фаолияти тўғрисидаги қонун ҳужжатларига мувофиқ суғурталовчи учун белгиланган устав капиталининг энг кам миқдори
B9: 2. | C9: Қайта суғурталовчиларнинг улушларини чегириб қолинган ўтган ўттиз олти ой мобайнида ҳисобланган суғурта товонлари суммаси
B10: 3. | C10: Ўтган ўттиз олти ой мобайнида ҳисобланган суғурта товонлари суммаси
B11: 4. | C11: Умумий суғурта соҳаси учун тузатувчи коэффициент (2-сатр миқдорининг 3-сатр миқдорига нисбати, 0,5 дан кам бўлмаслиги шарт)
B12: 5. | C12: Ўтган ўн икки ой мобайнида барча суғурта (қайта суғурта қилиш) шартномалари бўйича ҳисобланган суғурта мукофотлари суммаси
B13: 6. | C13: Ўтган ўн икки ой мобайнида 11 ва 13 классларга оид суғурта (қайта суғурта қилиш) шартномалари бўйича ҳисобланган суғурта мукофотлари суммасининг 50 фоизи
B14: 7. | C14: Ўтган ўн икки ой мобайнида тузилган суғурта (қайта суғурта қилиш) шартномаларининг бекор қилиниши (шартлари ўзгариши) муносабати билан суғурта қилдирувчиларга (қайта суғурта қилдирувчиларга) қайтарилган суғурта мукофотлари суммаси
B15: 8. | C15: 5 ва 6-сатрлар миқдорларининг йиғиндисидан 7-сатр миқдорини чегириб қолиб аниқланган натижанинг 20 фоизи
B16: 9. | C16: «Мукофотлар усули» бўйича ҳисобланган миқдор (4-сатр миқдорини 8-сатр миқдорига кўпайтириш йўли билан ҳисобланган миқдор)
B17: 10. | C17: Ўтган ўттиз олти ой мобайнида 11 ва 13 классларга оид суғурта (қайта суғурта қилиш) шартномалари бўйича ҳисобланган суғурта товонлари суммасининг 50 фоизи
B18: 11. | C18: Ҳисобот санасига хабар қилинган, лекин бартараф этилмаган зарарлар захирасининг миқдори
B19: 12. | C19: Ҳисобот санасига 11 ва 13 классларга оид суғурта (қайта суғурта қилиш) шартномалари бўйича хабар қилинган, лекин бартараф этилмаган зарарлар захираси миқдорининг 50 фоизи
B20: 13. | C20: 3, 10, 11 ва 12-сатрлар миқдорлари йиғиндисининг 10 фоизи
B21: 14. | C21: «Тўловлар усули» бўйича ҳисобланган миқдор (4-сатр миқдорини 13-сатр миқдорига кўпайтириш йўли билан ҳисобланган миқдор)
B22: 15. | C22: Тўлов қобилияти маржасининг норматив миқдори (1, 9 ва 14-сатрларнинг миқдорларидан энг каттаси)
B23: 16. | C23: Ўз маблағлари манбаларининг суммаси (бухгалтерия баланси пассив қисмининг биринчи бўлими бўйича жами суммаси)
B24: 17. | C24: Номоддий активлар суммаси, суғурталовчи активларининг 10 фоизидан ошмаган миқдордаги суғурталовчининг асосий фаолияти учун харид қилинган дастурий таъминот бундан мустасно
B25: 18. | C25: Таъсисчиларнинг устав капиталига улушлар бўйича қарзи суммаси
B26: 19. | C26: Мақсадли тушумлар ва келгуси давр харажатлари ва тўловлари учун захиралар суммаси
B27: 20. | C27: Таъсисчилар (акциядорлар) ўртасида тақсимлаш учун мўлжалланган тақсимланмаган фойда қисмининг суммаси
B28: 21. | C28: Таъсисчиларга, акциядорларга ва ходимларга берилган қарзлар, шунингдек ушбу қарзлар бўйича жамғарилган фоизлар суммаси
B29: 22. | C29: Дебитор — боғлиқ шахсларнинг қарзлари суммаси;
B30: 23. | C30: Суғурта (қайта суғурта қилиш) шартномасида белгиланган тўлов санасидан уч ойдан кўп муддат мобайнида суғурта қилдирувчилар (қайта суғурта қилдирувчилар) томонидан тўланмаган суғурта (қайта суғурта) мукофотлари суммаси
B31: 24. | C31: Солиқ ва бошқа мажбурий тўловлар бўйича дебиторлик қарзлар суммаси
B32: 25. | C32: Берилган кафолатлар суммаси
B33: 26. | C33: 17-дан 25-гача бўлган сатрлар миқдорларининг йиғиндиси
B34: 27. | C34: Тўлов қобилияти маржасининг ҳақиқий миқдори (16-сатр миқдоридан 26-сатр миқдорининг чегириш орқали аниқланади)
B35: 28. | C35: Тўлов қобилияти маржасининг етарлилиги нормативи (27-сатр миқдорининг 15-сатр миқдорига нисбати)

Sheet 1806_2_uz (hidden)
B1: Қайд рақами | C1: =VLOOKUP($C$5,Жадваллар!$A:$E,2,FALSE) -> 1806 | D1: Жадваллар рўйхати
B2: Ҳужжат номи | C2: =VLOOKUP($C$5,Жадваллар!$A:$E,3,FALSE) -> Суғурталовчилар ва қайта суғурталовчиларнинг тўлов қобилияти тўғрисидаги низом
B3: Илова рақами | C3: =VLOOKUP($C$5,Жадваллар!$A:$E,4,FALSE) -> 2
B4: Илова номи | C4: =VLOOKUP($C$5,Жадваллар!$A:$E,5,FALSE) -> Ҳаётни суғурта қилиш соҳасида суғурта фаолиятини амалга оширадиган суғурталовчининг тўлов қобилияти маржасининг етарлилиги нормативи ҳисоб-китоби
B5: Илова коди | C5: 1806_2
B7: Т/р | C7: Нормативнинг номи | D7: Миқдор (минг сўм)
B8: 1. | C8: Суғурта фаолияти тўғрисидаги қонун ҳужжатларига мувофиқ суғурталовчи учун белгиланган устав капиталининг энг кам миқдори
B9: 2. | C9: Қайта суғурталовчиларнинг мукофотлар захирасидаги улуши чегириб қолинган мукофотлар захираси миқдори
B10: 3. | C10: Мукофотлар захираси миқдори
B11: 4. | C11: Ҳаётни суғурта қилиш соҳаси учун тузатувчи коэффициент (2-сатр миқдорининг 3-сатр миқдорига нисбати, 0,85 дан кам бўлмаслиги шарт)
B12: 5. | C12: 3-сатр миқдорини 4-сатр миқдорига кўпайтириш йўли билан ҳисобланган миқдорнинг 5 фоизи
B13: 6. | C13: Қайта суғурталовчиларнинг улушларини чегириб қолинган ўтган ўттиз олти ой мобайнида умумий суғурта соҳасининг 1 ва 2 классларига оид суғурта (қайта суғурта қилиш) шартномалари бўйича ҳисобланган суғурта товонлари суммаси
B14: 7. | C14: Ўтган ўттиз олти ой мобайнида умумий суғурта соҳасининг 1 ва 2 классларига оид суғурта (қайта суғурта қилиш) шартномалари бўйича ҳисобланган суғурта товонлари суммаси
B15: 8. | C15: Умумий суғурта соҳасининг 1 ва 2 класслари учун тузатувчи коэффициент (6-сатр миқдорининг 7-сатр миқдорига нисбати, 0,5 дан кам бўлмаслиги шарт)
B16: 9. | C16: Ўтган ўн икки ой мобайнида умумий суғурта соҳасининг 1 ва 2 классларига оид суғурта (қайта суғурта қилиш) шартномалари бўйича ҳисобланган суғурта мукофотлари суммаси
B17: 10. | C17: Ўтган ўн икки ой мобайнида умумий суғурта соҳасининг 1 ва 2 классларига оид тузилган суғурта (қайта суғурта қилиш) шартномаларининг бекор қилиниши (шартлари ўзгариши) муносабати билан суғурта қилдирувчиларга (қайта суғурта қилдирувчиларга) қайтарилган суғурта мукофотлари суммаси
B18: 11. | C18: 9-сатр миқдоридан 10-сатр миқдорини чегириб қолиб аниқланган натижанинг 20 фоизи
B19: 12. | C19: Ҳисобот санасига умумий суғурта соҳасининг 1 ва 2 классларига оид хабар қилинган, лекин бартараф этилмаган зарарлар захирасининг миқдори
B20: 13. | C20: 7 ва 12-сатрлар миқдорлари йиғиндисининг 10 фоизи
B21: 14. | C21: 11 ва 13-сатрларнинг миқдорларидан энг каттаси
B22: 15. | C22: 8-сатр миқдорини 14-сатр миқдорига кўпайтириш йўли билан ҳисобланган миқдор
B23: 16. | C23: 5 ва 15-сатрлар миқдорлари йиғиндиси*
B24: 17. | C24: Тўлов қобилияти маржасининг норматив миқдори (1 ва 16-сатрларнинг миқдорларидан энг каттаси)
B25: 18. | C25: Ўз маблағлари манбаларининг суммаси (бухгалтерия баланси пассив қисмининг биринчи бўлими бўйича жами суммаси)
B26: 19. | C26: Номоддий активлар суммаси, суғурталовчи активларининг 10 фоизидан ошмаган миқдордаги суғурталовчининг асосий фаолияти учун харид қилинган дастурий таъминот бундан мустасно
B27: 20. | C27: Таъсисчиларнинг устав капиталига улушлар бўйича қарзи суммаси
B28: 21. | C28: Мақсадли тушумлар ва келгуси давр харажатлари ва тўловлари учун захиралар суммаси
B29: 22. | C29: Таъсисчилар (акциядорлар) ўртасида тақсимлаш учун мўлжалланган тақсимланмаган фойда қисмининг суммаси
B30: 23. | C30: Таъсисчиларга, акциядорларга ва ходимларга берилган қарзлар, шунингдек ушбу қарзлар бўйича жамғарилган фоизлар суммаси
B31: 24. | C31: Дебитор-боғлиқ шахсларнинг қарзлари суммаси;
B32: 25. | C32: Суғурта (қайта суғурта қилиш) шартномасида белгиланган тўлов санасидан уч ойдан кўп муддат мобайнида суғурта қилдирувчилар (қайта суғурта қилдирувчилар) томонидан тўланмаган суғурта (қайта суғурта) мукофотлари суммаси
B33: 26. | C33: Солиқ ва бошқа мажбурий тўловлар бўйича дебиторлик қарзлар суммаси
B34: 27. | C34: Берилган кафолатлар суммаси
B35: 28. | C35: 19-дан 27-гача бўлган сатрлар миқдорларининг йиғиндиси
B36: 29. | C36: Тўлов қобилияти маржасининг ҳақиқий миқдори (18-сатр миқдоридан 28-сатр миқдорининг чегириш орқали аниқланади)
B37: 30. | C37: Тўлов қобилияти маржасининг етарлилиги нормативи (29-сатр миқдорининг 17-сатр миқдорига нисбати)
B39: * 5-дан 15-гача бўлган сатрлар, фақат ҳаётни суғурта қилиш соҳасида суғурта фаолиятини амалга оширадиган суғурталовчи умумий суғурта соҳасининг 1 ва 2 класслари бўйича ҳам суғурта фаолиятини амалга оширадиган бўлса, қўлланилади.

Sheet 1806_3_uz (hidden)
B1: Қайд рақами | C1: =VLOOKUP($C$5,Жадваллар!$A:$E,2,FALSE) -> 1806 | D1: Жадваллар рўйхати
B2: Ҳужжат номи | C2: =VLOOKUP($C$5,Жадваллар!$A:$E,3,FALSE) -> Суғурталовчилар ва қайта суғурталовчиларнинг тўлов қобилияти тўғрисидаги низом
B3: Илова рақами | C3: =VLOOKUP($C$5,Жадваллар!$A:$E,4,FALSE) -> 3
B4: Илова номи | C4: =VLOOKUP($C$5,Жадваллар!$A:$E,5,FALSE) -> Суғурталовчи/қайта суғурталовчининг алоҳида таваккалчиликлар бўйича мажбуриятларнинг йўл қўйиладиган энг кўп миқдори ва мажбуриятлар жамининг йўл қўйиладиган энг кўп миқдори нормативларига риоя қилганлиги ҳамда суғурталовчи (қайта суғурталовчи) активларини жойлаштиришга оид талабларга риоя қилинганлиги тўғрисида маълумотлар
B5: Илова коди | C5: 1806_3
B7: Т/р | C7: Нормативнинг номи | D7: Миқдор (минг сўм)
D8: норматив | E8: ҳақиқатда
B9: 1. | C9: Суғурталовчининг (қайта суғурталовчининг) алоҳида таваккалчиликлар бўйича мажбуриятларининг энг кўп миқдори, экспорт контрактларини сиёсий ва тижорат таваккалчиликларидан суғурта қилиш бундан мустасно
B10: 1.1. | C10: Суғурталовчининг (қайта суғурталовчининг) экспорт контрактларини сиёсий ва тижорат таваккалчиликларидан суғурта қилиш юзасидан алоҳида таваккалчиликлар бўйича мажбуриятларининг энг кўп миқдори
B11: 2. | C11: Суғурталовчининг (қайта суғурталовчининг) бешта энг йирик алоҳида таваккалчиликлар бўйича мажбуриятларининг энг кўп миқдори
B12: 2.1. | C12: Суғурталовчининг (қайта суғурталовчининг) экспорт контрактларини сиёсий ва тижорат таваккалчиликларидан суғурта қилиш юзасидан бешта энг йирик алоҳида таваккалчиликлар бўйича мажбуриятларининг энг кўп миқдори
B13: 3. | C13: Суғурталовчи (қайта суғурталовчи) бошқа юридик шахсларнинг устав капиталларига жойлаштирган активларининг умумий суммаси
B14: 4. | C14: Суғурталовчи (қайта суғурталовчи) активларини битта ер участкаси ёки кўчмас мулкнинг бошқа объектига ёхуд битта объект сифатида кўрилиши мумкин бўлган ер участкалари ва кўчмас мулк объектлари мажмуига жойлаштиришининг энг кўп миқдори
B15: 5. | C15: Битта тижорат банкига жойлаштирилган энг кўп омонат (депозит)
B16: 6. | C16: Кредит ташкилотларига (тижорат банкларидан ташқари) жойлаштирилган омонатларнинг (депозитларнинг) умумий суммаси
B17: 7. | C17: Суғурталовчи (қайта суғурталовчи) активларини битта юридик шахснинг устав капиталига жойлаштириш ёки битта юридик шахсда бошқа иштирок этиш ҳуқуқи
B18: 8. | C18: Суғурталовчи (қайта суғурталовчи) таъсисчилари, акциядорлари ва ходимларига берилган, шунингдек, у билан ҳаёт суғуртаси шартномасини тузган суғурта қилдирувчиларга берилган ушбу шартномалар билан кафолатланган қарзларнинг умумий суммаси
B19: 9. | C19: Жалб этилган қарзнинг (молиявий ёрдамнинг) энг кўп миқдори
B20: 10. | C20: Суғурталовчининг (қайта суғурталовчининг) касса ва/ёки ҳисоб (валюта) ва бошқа банк рақамларидаги пул маблағлари, шунингдек, уларга тенглашитирилган маблағлар

Sheet 1806_4_uz (hidden)
B1: Қайд рақами | C1: =VLOOKUP($C$5,Жадваллар!$A:$E,2,FALSE) -> 1806 | D1: Жадваллар рўйхати
B2: Ҳужжат номи | C2: =VLOOKUP($C$5,Жадваллар!$A:$E,3,FALSE) -> Суғурталовчилар ва қайта суғурталовчиларнинг тўлов қобилияти тўғрисидаги низом
B3: Илова рақами | C3: =VLOOKUP($C$5,Жадваллар!$A:$E,4,FALSE) -> 4
B4: Илова номи | C4: =VLOOKUP($C$5,Жадваллар!$A:$E,5,FALSE) -> Суғурталовчи/қайта суғурталовчининг ҳар қандай битта юридик шахснинг устав капиталида иштирок этиш улуши ҳисоб-китоби
B5: Илова коди | C5: 1806_4
B7: № | C7: Юридик шахснинг номи | D7: Юридик шахснинг устав капитали миқдори (минг сўм) | E7: Устав капиталда суғурталовчининг (қайта суғурталовчининг) иштирок этиш миқдори (минг сўм) | F7: Устав капиталда суғурталовчининг (қайта суғурталовчининг) иштирок этиш улуши (%)
B8: 1
B9: =B8+1 -> 2
B10: =B9+1 -> 3
B11: 4
B12: 5
B13: 6
B14: 7
B15: 8
B16: 9
B17: 10
B18: 11
B19: =B18+1 -> 12
B20: 13
B21: 14
B22: 15
B23: 16
B24: 17
B25: 18
B26: 19
B27: 20
B28: 21
B29: 22
B30: 23
B31: 24
B32: 25
B33: 26
B34: 27
B35: 28
B36: 29
B37: 30

Sheet 1806_5_uz (hidden)
B1: Қайд рақами | C1: =VLOOKUP($C$5,Жадваллар!$A:$E,2,FALSE) -> 1806 | D1: Жадваллар рўйхати
B2: Ҳужжат номи | C2: =VLOOKUP($C$5,Жадваллар!$A:$E,3,FALSE) -> Суғурталовчилар ва қайта суғурталовчиларнинг тўлов қобилияти тўғрисидаги низом
B3: Илова рақами | C3: =VLOOKUP($C$5,Жадваллар!$A:$E,4,FALSE) -> 5
B4: Илова номи | C4: =VLOOKUP($C$5,Жадваллар!$A:$E,5,FALSE) -> Суғурталовчи/қайта суғурталовчининг битта боғлиқ шахс ёки барча боғлиқ шахсларда жойлаштирилган активлари суммаси ҳисоб-китоби
B5: Илова коди | C5: 1806_5
B7: № | C7: Боғлиқ шахс (номи ёки Ф.И.Ш.) | D7: Жойлаштириш тури | E7: Қўйилманинг даромадлилиги (йиллик фоизларда) | F7: Жойлаштирилган активлар суммаси | G7: Суғурталовчининг (қайта суғурталовчининг)боғлиқ шахслар билан фаолиятининг кўрсаткичи (%) | H7: Норматив (%)
B8: 1
B9: =B8+1 -> 2
B10: =B9+1 -> 3
B11: 4
B12: 5
B13: 6
B14: 7
B15: 8
B16: 9
B17: 10
B18: 11
B19: 12
B20: 13
B21: 14
B22: 15
B23: 16
B24: 17
B25: 18
B26: 19
B27: 20
B28: 21
B29: 22
B30: 23
B31: 24
B32: =B31+1 -> 25
B33: 26
B34: 27
B35: 28
B36: 29
B37: 30

Sheet 1806_6_uz (hidden)
B1: Қайд рақами | C1: =VLOOKUP($C$5,Жадваллар!$A:$E,2,FALSE) -> 1806 | D1: Жадваллар рўйхати
B2: Ҳужжат номи | C2: =VLOOKUP($C$5,Жадваллар!$A:$E,3,FALSE) -> Суғурталовчилар ва қайта суғурталовчиларнинг тўлов қобилияти тўғрисидаги низом
B3: Илова рақами | C3: =VLOOKUP($C$5,Жадваллар!$A:$E,4,FALSE) -> 6
B4: Илова номи | C4: =VLOOKUP($C$5,Жадваллар!$A:$E,5,FALSE) -> Суғурталовчи/қайта суғурталовчининг қайта суғурта қилиш операцияларига оид талабларга риоя қилганлиги тўғрисида маълумотлар
B5: Илова коди | C5: 1806_6
B7: 1-жадвал | C7: Кўрсаткичнинг номи | D7: Қатор рақами | E7: Миқдор, минг сўм, АҚШ доллари, бошқа | F7: Изоҳ
C8: Ўзида қолдирилган улушнинг энг кам миқдори (мажбуриятлар чет эл суғурта ташкилотларида қайта суғурталанганда), экспорт контрактларини сиёсий ва тижорат таваккалчиликларидан суғурта қилиш ва чет элга чиқувчи шахсларни суғурта қилиш шартномалари бундан мустасно | D8: 1
C9: Суғурталовчининг (қайта суғурталовчининг) ўтган чоракдаги тўлов қобилияти маржасининг ҳақиқий миқдори | D9: 2
C10: 1-қаторнинг 2-қаторга нисбати (%) | D10: 3 | F10: Йўл қўйиладиган энг кам миқдор 5%
C11: Ўзбекистон Республикаси ташқарисига қайта суғуртага берилган ҳар бир алоҳида суғурта (қайта суғурта қилиш) шартномаси бўйича мажбуриятларнинг энг кўп ҳажми | D11: 4 | F11: Йўл қўйиладиган энг кўп миқдор 95%
B13: * Суғурта брокери орқали қайта суғурта қилинганда унинг номи ва улуши кўрсатилади, қайта суғурталовчилар тўғрисидаги маълумот ушбу жадвалга, мазкур шаклга мувофиқ илова қилинади.
B14: 2-жадвал | C14: Суғурталовчининг/ қайта суғурталовчининг номи (кимга қайта суғурта қилишга берилган)* | D14: Молиявий барқарорлик рейтинги (рейтинг агентлигининг номини кўрсатган ҳолда) | E14: Суғурталовчи (қайта суғурталовчи) мамлакати | F14: Қайта суғуртага берилган суғурта мажбуриятлари ҳажми (минг сўм, АҚШ доллари, бошқа) | G14: Қайта суғуртага берилган шартномалар бўйича суғурта мукофотлари ҳажми (минг сўм, АҚШ доллари, бошқа) | H14: Қайта суғуртага берилган суғурта мажбуриятлари умумий ҳажмидаги қайта суғурталовчининг улуши (%)
B15: 1
B16: =B15+1 -> 2
B17: =B16+1 -> 3
B18: 4
B19: 5
B20: 6
B21: 7
B22: 8
B23: 9
B24: 10
B25: 11
B26: 12
B27: 13
B28: 14
B29: 15
B30: 16
B31: 17
B32: 18
B33: 19
B34: 20
B35: 21
B36: 22
B37: 23
B38: 24
B39: 25
B40: 26
B41: 27
B42: 28
B43: 29
B44: 30

Sheet 1882_1_uz (hidden)
B1: Қайд рақами | C1: =VLOOKUP($C$5,Жадваллар!$A:$E,2,FALSE) -> 1882 | D1: Жадваллар рўйхати
B2: Ҳужжат номи | C2: =VLOOKUP($C$5,Жадваллар!$A:$E,3,FALSE) -> Суғурталовчиларнинг суғурта захиралари тўғрисидаги низом
B3: Илова рақами | C3: =VLOOKUP($C$5,Жадваллар!$A:$E,4,FALSE) -> 1
B4: Илова номи | C4: =VLOOKUP($C$5,Жадваллар!$A:$E,5,FALSE) -> Транспорт воситалари эгаларининг фуқаролик жавобгарлигини мажбурий суғурта қилиш бўйича барқарорлаштириш захирасини ҳисоблаш мақсадида даромадлар, харажатлар ва молиявий натижаларнинг ҳисоб-китоби
B5: Илова коди | C5: 1882_1
D6: 1-жадвал
B7: Сатр т/р | C7: Кўрсаткич номи | D7: Миқдори (минг сўм)
B8: 1. | C8: Ҳисобот даврида ҳисобланган суғурта брутто-мукофоти
B9: 2. | C9: Ҳисобот даврида суғурталовчининг тўловларни кафолатлаш Жамғармасига мажбурий бадаллари
B10: 3. | C10: Ҳисобот даври бошига ИМЗ
B11: 4. | C11: Ҳисобот даври охирига (ҳисобот санасига) ИМЗ
B12: 5. | C12: Ҳисобот даври бошига ХЗЗ
B13: 6. | C13: Ҳисобот даври охирига (ҳисобот санасига) ХЗЗ
B14: 7. | C14: Ҳисобот даври бошига СХЗЗ
B15: 8. | C15: Ҳисобот даври охирига (ҳисобот санасига) СХЗЗ
B16: 9. | C16: Ҳисобот даврида амалга оширилган суғурта тўловлари
B17: 10. | C17: Шартномаларнинг муддатидан олдин тугатилиши (шартларининг ўзгартирилиши) муносабати билан ҳисобот даврида суғурта қилдирувчиларга қайтарилган суғурта мукофотлари (бадаллари)
B18: 11. | C18: Ҳисобот даврида транспорт воситалари эгаларининг фуқаролик жавобгарлигини мажбурий суғурта қилишни амалга ошириш учун амалга оширилган харажатлар (шу жумладан, суғурта ҳодисалари содир бўлишининг олдини олиш ва огоҳлантириш бўйича огоҳлантириш чора-тадбирлари захирасига ажратмалар) (11 сатр = 1 сатр х 25%)
B19: 12. | C19: Ҳисобот даврида ИМЗ, ХЗЗ ва СХЗЗ ўзгариши (12 сатр = 4 сатр – 3 сатр + 6 сатр – 5 сатр + 8 сатр – 7 сатр)
B20: 13. | C20: Жами — даромадлар (агар 12 сатр > = 0, бу ҳолда 13 сатр = 1 сатр; агар 12 сатр < 0, бу ҳолда 13 сатр = 1 сатр – 12 сатр.)
B21: 14. | C21: Жами — харажатлар (агар 12 сатр > = 0, бу ҳолда 14 сатр = 2 сатр + 9 сатр + 10 сатр + 11 сатр + 12 сатр; агар 12 сатр < 0, бу ҳолда 14 сатр = 2 сатр + 9 сатр + 10 сатр + 11 сатр.)
B22: 15. | C22: Молиявий натижа (даромадларнинг харажатлардан ёки харажатларнинг даромадлардан юқорилиги) (15 сатр = 13 сатр – 14 сатр)
C24: Транспорт воситалари эгаларининг фуқаролик жавобгарлигини мажбурий суғурта қилиш бўйича барқарорлаштириш захирасининг ҳисоб-китоби | D24: 2-жадвал
B25: Сатр т/р | C25: Кўрсаткич номи | D25: Миқдори (минг сўм)
B26: 1. | C26: Даромадлар (1-жадвалнинг 13 сатри маълумотларига кўра)
B27: 2. | C27: Молиявий натижа (даромадларнинг харажатлардан ёки харажатларнинг даромадлардан ошганлиги) (1-жадвалнинг 15 сатри маълумотларига кўра)
B28: 3. | C28: Ҳисобот даври бошига транспорт воситалари эгаларининг фуқаролик жавобгарлигини мажбурий суғурта қилиш бўйича барқарорлаштириш захираси (ФЖМС БЗ)
B29: 4. | C29: ФЖМС БЗ нинг кўпайиши/камайиши (агар 2 сатр > = 0,05 х 1 сатр, бу ҳолда 4 сатр = 2 сатр – 0,05 х 1 сатр; агар 0 < = 2 сатр < 0,05 х 1 сатр, бу ҳолда 4 сатр = 0; агар 2 сатр < 0, бу ҳолда 4 сатр = 2 сатр.)
B30: 5. | C30: Оралиқ якун (3 сатр + 4 сатр)
B31: 51. | C31: Транспорт воситалари эгаларининг фуқаролик жавобгарлигини мажбурий суғурта қилиш шартномалари бўйича ҳисобот санасига қадар ўттиз олти ой даврида амалга оширилган суғурта тўловлари суммаси
B32: 6. | C32: Ҳисобот санасига транспорт воситалари эгаларининг фуқаролик жавобгарлигини мажбурий суғурта қилиш бўйича барқарорлаштириш захираси (агар 5-сатр < 0, бу ҳолда 6-сатр = 0; агар 51-сатр > 5-сатр >= 0, бу ҳолда 6-сатр = 5-сатр; агар 5-сатр > 51-сатр, бу ҳолда 6-сатр = 51-сатр.)
B34: * Фақатгина суғурталовчи томонидан транспорт воситалари эгаларининг фуқаролик жавобгарлигини мажбурий суғурта қилиш бўйича фаолият олиб борилган тақдирда тўлдирилади. Мазкур жадвалдаги даромадлар, харажатлар ва молиявий натижани аниқлашда қўлланилувчи барча миқдорлар транспорт воситалари эгаларининг фуқаролик жавобгарлигини мажбурий суғурта қилишга тааллуқлидир.

Sheet 1882_2_uz (hidden)
B1: Қайд рақами | C1: =VLOOKUP($C$5,Жадваллар!$A:$E,2,FALSE) -> 1882 | D1: Жадваллар рўйхати
B2: Ҳужжат номи | C2: =VLOOKUP($C$5,Жадваллар!$A:$E,3,FALSE) -> Суғурталовчиларнинг суғурта захиралари тўғрисидаги низом
B3: Илова рақами | C3: =VLOOKUP($C$5,Жадваллар!$A:$E,4,FALSE) -> 2
B4: Илова номи | C4: =VLOOKUP($C$5,Жадваллар!$A:$E,5,FALSE) -> Иш берувчининг фуқаролик жавобгарлигини мажбурий суғурта қилиш бўйича барқарорлаштириш захирасини ҳисоблаш мақсадида даромадлар, харажатлар ва молиявий натижаларнинг ҳисоб-китоби
B5: Илова коди | C5: 1882_2
D6: 1-жадвал
B7: Сатр № | C7: Кўрсаткич номи | D7: Миқдори (минг сўм)
B8: 1. | C8: Ҳисобот даврида ҳисобланган суғурта брутто-мукофоти
B9: 2. | C9: Ҳисобот даври бошига ИМЗ
B10: 3. | C10: Ҳисобот даври охирига (ҳисобот санасига) ИМЗ
B11: 4. | C11: Ҳисобот даври бошига ХЗЗ
B12: 5. | C12: Ҳисобот даври охирига (ҳисобот санасига) ХЗЗ
B13: 6. | C13: Ҳисобот даври бошига СХЗЗ
B14: 7. | C14: Ҳисобот даври охирига (ҳисобот санасига) СХЗЗ
B15: 8. | C15: Ҳисобот даврида амалга оширилган суғурта тўловлари
B16: 9. | C16: Шартномаларнинг муддатидан олдин тугатилиши (шартларининг ўзгартирилиши) муносабати билан ҳисобот даврида суғурта қилдирувчиларга қайтарилган суғурта мукофотлари (бадаллари)
B17: 10. | C17: Ҳисобот даврида иш берувчининг фуқаролик жавобгарлигини мажбурий суғурта қилишни амалга ошириш учун амалга оширилган харажатлар (шу жумладан, суғурта ҳодисалари содир бўлишининг олдини олиш ва огоҳлантириш бўйича огоҳлантириш чора-тадбирлари захирасига ажратмалар) (10 сатр = 1сатр х 30%)
B18: 11. | C18: Ҳисобот даврида ИМЗ, ХЗЗ ва СХЗЗ ўзгариши (11 сатр = 3 сатр – 2 сатр + 5 сатр – 4 сатр + 7 сатр – 6 сатр)
B19: 12. | C19: Жами — даромадлар (агар 11 сатр > = 0, бу ҳолда 12 сатр = 1 сатр; агар 11 сатр < 0, бу ҳолда 12 сатр = 1 сатр – 11 сатр)
B20: 13. | C20: Жами — харажатлар (агар 11 сатр > = 0, бу ҳолда 13 сатр = 8 сатр + 9 сатр + 10 сатр + 11 сатр; агар 11 сатр < 0, бу ҳолда 13 сатр = 8 сатр + 9 сатр + 10 сатр)
B21: 14. | C21: Молиявий натижа (даромадларнинг харажатлардан ёки харажатларнинг даромадлардан юқорилиги) (14 сатр = 12 сатр – 13 сатр)
C23: Иш берувчининг фуқаролик жавобгарлигини мажбурий суғурта қилиш бўйича барқарорлаштириш захирасининг ҳисоб-китоби | D23: 2-жадвал
B24: Сатр № | C24: Кўрсаткич номи | D24: Миқдори (минг сўм)
B25: 1. | C25: Даромадлар (1-жадвалнинг 12 сатри маълумотларига кўра)
B26: 2. | C26: Молиявий натижа (даромадларнинг харажатлардан ёки харажатларнинг даромадлардан ошганлиги) (1-жадвалнинг 14 сатри маълумотларига кўра)
B27: 3. | C27: Ҳисобот даври бошига иш берувчининг фуқаролик жавобгарлигини мажбурий суғурта қилиш бўйича барқарорлаштириш захираси (ИФЖМС БЗ)
B28: 4. | C28: ИФЖМС БЗ нинг кўпайиши/камайиши (агар 2 сатр > = 0,05 х 1 сатр, бу ҳолда 4 сатр = 2 сатр – 0,05 х 1 сатр; агар 0 < = 2 сатр < 0,05 х 1 сатр, бу ҳолда 4 сатр = 0; агар 2 сатр < 0, бу ҳолда 4 сатр = 2 сатр)
B29: 5. | C29: Оралиқ якун (3 сатр + 4 сатр)
B30: 6. | C30: Ҳисобот санасига иш берувчининг фуқаролик жавобгарлигини мажбурий суғурта қилиш бўйича барқарорлаштириш захираси (агар 5 сатр < 0, бу ҳолда 6 сатр = 0; агар 5 сатр > = 0, бу ҳолда 6 сатр = 5 сатр)
B32: * Фақатгина суғурталовчи томонидан иш берувчининг фуқаролик жавобгарлигини мажбурий суғурта қилиш бўйича фаолият олиб борилган тақдирда тўлдирилади. Мазкур жадвалдаги даромадлар, харажатлар ва молиявий натижани аниқлашда қўлланилувчи барча миқдорлар иш берувчининг фуқаролик жавобгарлигини мажбурий суғурта қилишга тааллуқлидир.

Sheet 1882_3_uz (hidden)
B1: Қайд рақами | C1: =VLOOKUP($C$5,Жадваллар!$A:$E,2,FALSE) -> 1882 | D1: Жадваллар рўйхати
B2: Ҳужжат номи | C2: =VLOOKUP($C$5,Жадваллар!$A:$E,3,FALSE) -> Суғурталовчиларнинг суғурта захиралари тўғрисидаги низом
B3: Илова рақами | C3: =VLOOKUP($C$5,Жадваллар!$A:$E,4,FALSE) -> 3
B4: Илова номи | C4: =VLOOKUP($C$5,Жадваллар!$A:$E,5,FALSE) -> Ташувчининг фуқаролик жавобгарлигини мажбурий суғурта қилиш бўйича барқарорлаштириш захирасини ҳисоблаш мақсадида даромадлар, харажатлар ва молиявий натижаларнинг ҳисоб-китоби
B5: Илова коди | C5: 1882_3
D6: 1-жадвал
B7: Сатр Т/р | C7: Кўрсаткич номи | D7: Миқдори (минг сўм)
B8: 1. | C8: Ҳисобот даврида ҳисобланган суғурта брутто-мукофоти
B9: 2. | C9: Ҳисобот даври бошига ИМЗ
B10: 3. | C10: Ҳисобот даври охирига (ҳисобот санасига) ИМЗ
B11: 4. | C11: Ҳисобот даври бошига ХЗЗ
B12: 5. | C12: Ҳисобот даври охирига (ҳисобот санасига) ХЗЗ
B13: 6. | C13: Ҳисобот даври бошига СХЗЗ
B14: 7. | C14: Ҳисобот даври охирига (ҳисобот санасига) СХЗЗ
B15: 8. | C15: Ҳисобот даврида амалга оширилган суғурта тўловлари
B16: 9. | C16: Шартномаларнинг муддатидан олдин тугатилиши (шартларининг ўзгартирилиши) муносабати билан ҳисобот даврида суғурта қилдирувчиларга қайтарилган суғурта мукофотлари (бадаллари)
B17: 10. | C17: Ҳисобот даврида ташувчининг фуқаролик жавобгарлигини мажбурий суғурта қилишни амалга ошириш учун амалга оширилган харажатлар (шу жумладан, суғурта ҳодисалари содир бўлишининг олдини олиш ва огоҳлантириш бўйича огоҳлантириш чора-тадбирлари захирасига ажратмалар) (10 сатр = 1 сатр х 30%)
B18: 11. | C18: Ҳисобот даврида ИМЗ, ХЗЗ ва СХЗЗ ўзгариши (11 сатр = 3 сатр — 2 сатр + 5 сатр — 4 сатр + 7 сатр — 6 сатр)
B19: 12. | C19: Жами — даромадлар (агар 11 сатр > = 0, бу ҳолда 12 сатр = 1 сатр; агар 11 сатр < 0, бу ҳолда 12 сатр = 1 сатр — 11 сатр)
B20: 13. | C20: Жами — харажатлар (агар 11 сатр >= 0, бу ҳолда 13 сатр = 8 сатр + 9 сатр + 10 сатр + 11 сатр; агар 11 сатр < 0, бу ҳолда 13 сатр = 8 сатр + 9 сатр + 10 сатр)
B21: 14. | C21: Молиявий натижа (даромадларнинг харажатлардан ёки харажатларнинг даромадлардан юқорилиги) (14 сатр = 12 сатр — 13 сатр)
C23: Ташувчининг фуқаролик жавобгарлигини мажбурий суғурта қилиш бўйича барқарорлаштириш захирасининг ҳисоб-китоби | D23: 2-жадвал
B24: Сатр Т/р | C24: Кўрсаткич номи | D24: Миқдори (минг сўм)
B25: 1. | C25: Даромадлар (1-жадвалнинг 12 сатри маълумотларига кўра)
B26: 2. | C26: Молиявий натижа (даромадларнинг харажатларданёки харажатларнинг даромадлардан ошганлиги) (1-жадвалнинг 14 сатри маълумотларига кўра)
B27: 3. | C27: Ҳисобот даври бошига ташувчининг фуқаролик жавобгарлигини мажбурий суғурта қилиш бўйича барқарорлаштириш захираси (ТФЖМС БЗ)
B28: 4. | C28: ТФЖМС БЗ нинг кўпайиши/камайиши (агар 2 сатр > = 0,05 х 1 сатр, бу ҳолда 4 сатр = 2 сатр — 0,05 х 1 сатр; агар 0 < = 2 сатр < 0,05 х 1 сатр, бу ҳолда 4 сатр = 0; агар 2 сатр < 0, бу ҳолда 4 сатр = 2 сатр)
B29: 5. | C29: Оралиқ якун (3 сатр + 4 сатр)
B30: 6. | C30: Ҳисобот санасига ташувчининг фуқаролик жавобгарлигини мажбурий суғурта қилиш бўйича барқарорлаштириш захираси (агар 5 сатр < 0, бу ҳолда 6 сатр = 0; агар 5 сатр > = 0, бу ҳолда 6 сатр = 5 сатр)
B32: * Фақатгина суғурталовчи томонидан ташувчининг фуқаролик жавобгарлигини мажбурий суғурта қилиш бўйича фаолият олиб борилган тақдирда тўлдирилади. Мазкур жадвалдаги даромадлар, харажатлар ва молиявий натижани аниқлашда қўлланилувчи барча миқдорлар ташувчининг фуқаролик жавобгарлигини мажбурий суғурта қилишга тааллуқлидир.

Sheet 1882_4_uz (hidden)
B1: Қайд рақами | C1: =VLOOKUP($C$5,Жадваллар!$A:$E,2,FALSE) -> 1882 | D1: Жадваллар рўйхати
B2: Ҳужжат номи | C2: =VLOOKUP($C$5,Жадваллар!$A:$E,3,FALSE) -> Суғурталовчиларнинг суғурта захиралари тўғрисидаги низом
B3: Илова рақами | C3: =VLOOKUP($C$5,Жадваллар!$A:$E,4,FALSE) -> 4
B4: Илова номи | C4: =VLOOKUP($C$5,Жадваллар!$A:$E,5,FALSE) -> Суғурта захираларининг умумий миқдори
B5: Илова коди | C5: 1882_4
B7: Захиралар | D7: Жами (минг сўм) | E7: Шулардан хорижий валютада
E8: АҚШ доллари | F8: евро | G8: бошқа | H8: жами (минг сўм экв.)
B9: Ишлаб топилмаган мукофот захираси (жами)
B10: 1-ҳисоб гуруҳи, шу жумладан:
B11: ФЖМС бўйича ИМЗ
B12: ИФЖМС бўйича ИМЗ
B13: ТФЖМС бўйича ИМЗ
B14: 2-ҳисоб гуруҳи
B15: 3-ҳисоб гуруҳи
B16: 4-ҳисоб гуруҳи
B17: Қайта суғурталовчиларнинг ИМЗдаги улуши
B18: Хабар қилинган, лекин бартараф этилмаган зарарлар захираси (жами), шу жумладан:
B19: ФЖМС бўйича ХЗЗ
B20: ИФЖМС бўйича ХЗЗ
B21: ТФЖМС бўйича ХЗЗ
B22: Қайта суғурталовчиларнинг ХЗЗдаги улуши
B23: Содир бўлган, лекин хабар қилинмаган зарарлар захираси (жами), шу жумладан:
B24: ФЖМС бўйича СХЗЗ
B25: ИФЖМС бўйича СХЗЗ
B26: ТФЖМС бўйича СХЗЗ
B27: Қайта суғурталовчиларнинг СХЗЗдаги улуши
B28: Транспорт воситалари эгаларининг фуқаролик жавобгарлигини мажбурий суғурта қилиш бўйича барқарорлаштириш захираси (ФЖМС БЗ)
B29: Иш берувчининг фуқаролик жавобгарлигини мажбурий суғурта қилиш бўйича барқарорлаштириш захираси (ИФЖМС БЗ)
B30: Ташувчининг фуқаролик жавобгарлигини мажбурий суғурта қилиш бўйича барқарорлаштириш захираси (ТФЖМС БЗ)
B31: Мукофотлар захираси (жами)
B32: жумладан, ҳаётни суғурта қилишнинг жамғарилиб борувчи турлари бўйича захира
B33: Қайта суғурталовчиларнинг ҲЖЗдаги улуши
B34: Ҳаётни суғурта қилишнинг бошқа турлари (жамғарилиб борувчи турларидан ташқари) бўйича захира
B35: Қайта суғурталовчиларнинг ҲЗдаги улуши
B36: Қайта суғурталовчиларнинг мукофотлар захирасидаги улуши
B37: Техник захираларнинг умумий миқдори
B38: Қайта суғурталовчиларнинг техник захираларда умумий улуши
B39: Огоҳлантириш чора-тадбирлари захираси (жами), шу жумладан:
B40: ФЖМС ОЧЗ
B41: ИФЖМС ОЧЗ
B42: ТФЖМС ОЧЗ
B43: Суғуртанинг бошқа турлари бўйича ОЧЗ
B44: Бошқа суғурта захиралари
B45: ...
B46: Суғурта захираларининг умумий миқдори
B47: Қайта суғурталовчиларнинг суғурта захираларидаги умумий улуши

Sheet 1882_5_uz (hidden)
B1: Қайд рақами | C1: =VLOOKUP($C$5,Жадваллар!$A:$E,2,FALSE) -> 1882 | D1: Жадваллар рўйхати
B2: Ҳужжат номи | C2: =VLOOKUP($C$5,Жадваллар!$A:$E,3,FALSE) -> Суғурталовчиларнинг суғурта захиралари тўғрисидаги низом
B3: Илова рақами | C3: =VLOOKUP($C$5,Жадваллар!$A:$E,4,FALSE) -> 5
B4: Илова номи | C4: =VLOOKUP($C$5,Жадваллар!$A:$E,5,FALSE) -> Активлар таркиби тўғрисида маълумот
B5: Илова коди | C5: 1882_5
B7: Активлар | D7: Жами активлар | F7: Улардан ажратилган активлар
D8: Ўзбекистон Республикаси ҳудудида | E8: Ўзбекистон Республикаси ҳудудидан ташқарида | F8: Ўзбекистон Республикаси ҳудудида | G8: Ўзбекистон Республикаси ҳудудидан ташқарида | H8: жами (минг сўм экв.)
B9: Асосий воситалар
B10: Улардан, кўчмас мулк
B11: Номоддий активлар
B12: Инвестициялар, жами
B13: Тижорат банкларидаги депозитлар (банк омонатлари)
B14: Кредит ташкилотларидаги депозитлар (тижорат банкларидан ташқари)
B15: Ходимларга берилган қарзлар, (боғлиқ шахслар ҳисобланувчи ходимлардан ташқари)
B16: Суғурталовчининг боғлиқ шахслари ҳисобланмайдиган таъсисчилари ва акциядорларига қарзлар
B17: Боғлиқ шахсларга берилган қарзлар
B18: Бошқа қарзлар
B19: Шўъба корхоналарига қўйилмалар
B20: Боғлиқ шахсларга қўйилмалар
B21: Давлат қимматли қоғозлари
B22: Акциялар
B23: Облигациялар
B24: Бошқа қимматли қоғозлар
B25: Бошқа инвестициялар
B26: Пул маблағлари, жами
B27: Ҳисоб рақамидаги пул маблағлари
B28: Кассадаги пул маблағлари
B29: Хорижий валютадаги пул маблағлари
B30: Бошқа пул маблағлари ва эквивалентлар
B31: Бошқа айланма активлар, жами
B32: Ишлаб чиқариш захиралари (материаллар)
B33: Тугалланмаган ишлаб чиқариш (хизматлар)
B34: Сотиб олинган хусусий акциялар
B35: Дебиторлик қарзлар, жами
B36: Суғурта қилдирувчилар билан ҳисоб-китоблар
B37: Қайта суғурталовчилар билан ҳисоб-китоблар
B38: Бўнак тўловлари
B39: Таъсисчилар билан ҳисоб-китоблар
B40: Бюджет билан ҳисоб-китоблар
B41: Бошқалар
B42: Бошқа активлар, жами
B43: Бошқа активлар (кўрсатинг)
B44: …
B45: ЖАМИ АКТИВЛАР

Sheet 1945_1_uz (hidden)
B1: Қайд рақами | C1: =VLOOKUP($C$5,Жадваллар!$A:$E,2,FALSE) -> 1945 | H1: Жадваллар рўйхати
B2: Ҳужжат номи | C2: =VLOOKUP($C$5,Жадваллар!$A:$E,3,FALSE) -> Суғурталовчиларнинг молиявий ҳисобот шаклларини ва уларни тўлдириш бўйича қоидаларни тасдиқлаш тўғрисидаги Молия вазирлиги буйруғи
B3: Илова рақами | C3: =VLOOKUP($C$5,Жадваллар!$A:$E,4,FALSE) -> 1
B4: Илова номи | C4: =VLOOKUP($C$5,Жадваллар!$A:$E,5,FALSE) -> Бухгалтерия баланси — 1-сонли шакл — суғурта
B5: Илова коди | C5: 1945_1
B7: Кўрсаткичлар номи | E7: Сатр коди | F7: Ҳисобот даври бошига | G7: Ҳисобот даври охирига
B8: Актив
B9: I. Узоқ муддатли активлар
B10: Асосий воситалар:
B11: Бошланғич (қайта тиклаш) қиймати (0100, 0300) | E11: 10
B12: Эскириш суммаси (0200) | E12: 11
B13: Қолдиқ (баланс) қиймати (сатр. 010 — 011) | E13: 12
B14: Номоддий активлар:
B15: Бошланғич қиймати (0400) | E15: 20
B16: Амортизация суммаси (0500) | E16: 21
B17: Қолдиқ (баланс) қиймати (сатр. 020 — 021) | E17: 22
B18: Узоқ муддатли инвестициялар, жами (сатр.040 + 050 + 060 + 070 + 080), шу жумладан: | E18: 30
B19: Қимматли қоғозлар (0610) | E19: 40
B20: Шўъба хўжалик жамиятларига инвестициялар (0620) | E20: 50
B21: Қарам хўжалик жамиятларига инвестициялар (0630) | E21: 60
B22: Чет эл капитали мавжуд бўлган корхоналарга инвестициялар (0640) | E22: 70
B23: Бошқа узоқ муддатли инвестициялар (0690) | E23: 80
B24: Ўрнатиладиган асбоб-ускуналар (0700) | E24: 90
B25: Капитал қўйилмалар (0800) | E25: 100
B26: Узоқ муддатли дебиторлик қарзлари (0910, 0920, 0930, 0940) | E26: 110
B27: Узоқ муддатли кечиктирилган харажатлар (0950, 0960, 0990) | E27: 120
B28: I бўлим бўйича жами (сатр. 012 + 022 + 030 + 090 + 100 + 110 + 120) | E28: 130
B29: II. Жорий активлар
B30: Товар-моддий захиралари, жами (сатр.150 + 160), шу жумладан: | E30: 140
B31: Материаллар (1000, 1500, 1600) | E31: 150
B32: Тугалланмаган хизматлар (2000, 2300, 2700) | E32: 160
B33: Келгуси давр харажатлари (3100) | E33: 170
B34: Кечиктирилган харажатлар (3200) | E34: 180
B35: Дебиторлар, жами (сатр. 200 + 310 + 320 + 330 + 340 + 350 + 360 + 370 + 38 0+ 390) | E35: 190
B36: шундан: муддати ўтган* | E36: 191
B37: Тўланадиган счётлар, жами (сатр. 210 + 220 - 400) | E37: 200
B38: Харидорлар ва буюртмачиларнинг қарзи (4010, 4020) | E38: 210
B39: Суғурта операциялари бўйича дебиторлар, жами (сатр. 230 + 240 + 250 + 260 + 270 + 280 + 290 + 300) | E39: 220
B40: Суғурта қилдирувчиларнинг қарзлари (4030) | E40: 230
B41: Суғурта агентлари ва брокерларининг қарзлари (4040) | E41: 240
B42: Қайта суғурта қилдирувчиларнинг қарзлари (4050) | E42: 250
B43: Қайта суғурталовчиларнинг комиссион мукофотлар, тантьема ва бошқа мукофотлар бўйича қарзлари (4051) | E43: 260
B44: Қайта суғурталовчиларнинг қарзлари (4060) | E44: 270
B45: Ҳаёт суғуртаси бўйича ссудалар (4070) | E45: 280
B46: Суғурталовчининг бошқа суғурталовчилардаги депо зарари (4080) | E46: 290
B47: Суғурталовчининг бошқа суғурталовчилардаги депо мукофотлари (4090) | E47: 300
B48: Алоҳида бўлинмаларнинг қарзи (4110) | E48: 310
B49: Шўъба ва қарам хўжалик жамиятларининг қарзи (4120) | E49: 320
B50: Ходимларга берилган бўнаклар (4200) | E50: 330
B51: Мол етказиб берувчилар ва пудратчиларга берилган бўнаклар (4300) | E51: 340
B52: Бюджетга бўнак тўловлари (4400) | E52: 350
B53: Мақсадли давлат жамғармалари ва суғурталар бўйича бўнак тўловлари (4500) | E53: 360
B54: Таъсисчиларнинг устав капиталига улушлар бўйича қарзи (4600) | E54: 370
B55: Ходимларнинг бошқа операциялар бўйича қарзи (4700) | E55: 380
B56: Бошқа дебиторлик қарзлари (4800) | E56: 390
B57: Ишончсиз қарзлар бўйича резерв (4900) | E57: 400
B58: Пул маблағлари, жами (сатр.420 + 430 + 440 + 450), шу жумладан: | E58: 410
B59: Кассадаги пул маблағлари (5000) | E59: 420
B60: Ҳисоб-китоб счётидаги пул маблағлари (5100) | E60: 430
B61: Чет эл валютасидаги пул маблағлари (5200) | E61: 440
B62: Бошқа пул маблағлари ва эквивалентлари (5500, 5600, 5700) | E62: 450
B63: Қисқа муддатли инвестициялар (5800) | E63: 460
B64: Бошқа жорий активлар (5900) | E64: 470
B65: II бўлим бўйича жами (сатр. 140 + 170 + 180 + 190 + 410 + 460 + 470). | E65: 480
B66: Баланс активи бўйича жами (сатр.130 + 480) | E66: 490
B67: Пассив
B68: I. Ўз маблағлари манбалари
B69: Устав капитали (8300) | E69: 500
B70: Қўшилган капитал (8400) | E70: 510
B71: Захира капитали (8500) | E71: 520
B72: Сотиб олинган хусусий акциялар (8600) | E72: 530
B73: Тақсимланмаган фойда (қопланмаган зарар) (8700) | E73: 540
B74: Мақсадли тушумлар (8800) | E74: 550
B75: Келгуси давр харажатлари ва тўловлари учун захиралар (8900) | E75: 560
B76: I бўлим бўйича жами (сатр. 500 + 510 + 520 - 530 + 540 + 550 + 560) | E76: 570
B77: II. Суғурта захиралари
B78: Суғурта захиралари, жами (сатр. 590 + 600 + 610 + 620 + 630 + 640 + 650 + 660) | E78: 580
B79: Ишлаб топилмаган мукофотлар захираси (8010) | E79: 590
B80: Содир бўлган, лекин хабар қилинмаган зарарлар захираси (8020) | E80: 600
B81: Хабар қилинган, лекин бартараф этилмаган зарарлар захираси (8030) | E81: 610
B82: Огоҳлантириш чора -тадбирлари захираси (8040) | E82: 620
B83: Активларнинг номувофиқлиги захираси (8050) | E83: 630
B84: Фалокатлар захираси (8060) | E84: 640
B85: Зарарлиликнинг тебраниши захираси (8070) | E85: 650
B86: Ҳаёт суғуртаси бўйича захиралар (8090) | E86: 660
B87: Қайта суғурталовчиларнинг суғурта захираларидаги улуши, жами (сатр. 680 + 690 + 700 + 710) | E87: 670
B88: Ишлаб топилмаган мукофотлар захирасидаги қайта суғурталовчиларнинг улуши (8110) | E88: 680
B89: Хабар қилинган, лекин бартараф этилмаган зарарлар захирасидаги қайта суғурталовчиларнинг улуши (8120) | E89: 690
B90: Содир бўлган, лекин хабар қилинмаган зарарлар захирасидаги қайта суғурталовчиларнинг улуши (8130) | E90: 700
B91: Ҳаёт суғуртаси бўйича захиралардаги қайта суғурталовчиларнинг улуши (8140) | E91: 710
B92: II бўлим бўйича жами (сатр.580 - 670) | E92: 720
B93: III. Мажбуриятлар
B94: Узоқ муддатли мажбуриятлар, жами (сатр. 740 + 750 + 850 + 860 + 870 + 880 + 890 + 900 + 910 + 920) | E94: 730
B95: шу жумладан: узоқ муддатли кредиторлик қарзлари (сатр.740 + 760 + 770 + 780 + 790 + 800 + 820 + 830 + 850 + 870 + 890 + 920) | E95: 731
B96: Мол етказиб берувчилар ва пудратчиларга узоқ муддатли қарз (7010, 7020) | E96: 740
B97: Суғурта операциялари бўйича узоқ муддатли мажбуриятлар, жами (сатр. 760 + 770 + 780 + 790 + 800 + 810 + 820 + 830) | E97: 750
B98: Огоҳлантириш чора -тадбирларини амалга оширувчи пудратчиларга узоқ муддатли қарзлар (7011) | E98: 760
B99: Суғурта қилдирувчиларга узоқ муддатли қарзлар (7030) | E99: 770
B100: Суғурта агентлари ва брокерларига узоқ муддатли қарзлар (7040) | E100: 780
B101: Қайта суғурта қилдирувчиларга узоқ муддатли қарзлар (7050) | E101: 790
B102: Қайта суғурталовчиларга узоқ муддатли қарзлар (7060) | E102: 800
B103: Қайта суғурталовчиларнинг депо мукофотлари (7070) | E103: 810
B104: Қайта суғурта қилдирувчиларга комиссион мукофотлар, тантьема ва бошқа мукофотлар бўйича узоқ муддатли қарзлар (7080) | E104: 820
B105: Актуарийлар, аджастерлар, сюрвейерлар ва ассистансларга узоқ муддатли қарзлар (7090) | E105: 830
B106: Алоҳида бўлинмаларга узоқ муддатли қарз (7110) | E106: 840
B107: Шўъба ва қарам хўжалик жамиятларга узоқ муддатли қарз (7120) | E107: 850
B108: Узоқ муддатли кечиктирилган даромадлар (7210, 7220, 7230) | E108: 860
B109: Солиқ ва бошқа мажбурий тўловлар бўйича узоқ муддатли кечиктирилган мажбуриятлар (7240) | E109: 870
B110: Бошқа узоқ муддатли кечиктирилган мажбуриятлар (7250, 7290) | E110: 880
B111: Харидорлар ва буюртмачилардан олинган бўнаклар (7300) | E111: 890
B112: Узоқ муддатли банк кредитлари (7810) | E112: 900
B113: Узоқ муддатли қарзлар (7820, 7830, 7840) | E113: 910
B114: Бошқа узоқ муддатли кредиторлик қарзлар (7900) | E114: 920
B115: Жорий мажбуриятлар, жами (сатр. 940 + 950 +1050 + 1060 + 1070 + 1080 + 1090 + 1100 + 1110 + 1120 +1130 + 1140 + 1150 + 1160 + 1170 + 1180) | E115: 930
B116: шу жумладан: жорий кредиторлик қарзлари (сатр. 940 + 960 + 970 + 980 + 990 + 1000 + 1020 + 1030 + 1050 + 1070 + 1090 + 1100 +1110 + 1120 + 1130 + 1140 + 1180) | E116: 931
B117: шундан: муддати ўтган жорий кредиторлик қарзлари* | E117: 932
B118: Мол етказиб берувчилар ва пудратчиларга қарз (6010, 6020) | E118: 940
B119: Суғурта операциялари бўйича мажбуриятлар, жами (сатр. 960 + 970 + 980 + 990 + 1000 + 1010 + 1020 + 1030) | E119: 950
B120: Огоҳлантириш чора -тадбирларини амалга оширувчи пудратчиларга қарзлар (6011) | E120: 960
B121: Суғурта қилдирувчиларга қарзлар (6030) | E121: 970
B122: Суғурта агентлари ва брокерларига қарзлар (6040) | E122: 980
B123: Қайта суғурта қилдирувчиларга қарзлар (6050) | E123: 990
B124: Қайта суғурталовчиларга қарзлар (6060) | E124: 1000
B125: Қайта суғурталовчиларнинг депо мукофотлари (6070) | E125: 1010
B126: Қайта суғурта қилдирувчиларга комиссион мукофотлар, тантъема ва бошқа мукофотлар бўйича қарзлари (6080) | E126: 1020
B127: Актуарийлар, аджастерлар, сюрвейерлар ва ассистансларга қарзлар (6090) | E127: 1030
B128: Алоҳида бўлинмаларга қарз (6110) | E128: 1040
B129: Шўъба ва қарам хўжалик жамиятларига қарз (6120) | E129: 1050
B130: Кечиктирилган даромадлар (6210, 6220, 6230) | E130: 1060
B131: Солиқлар ва бошқа мажбурий тўловлар бўйича кечиктирилган мажбуриятлар (6240) | E131: 1070
B132: Бошқа кечиктирилган мажбуриятлар (6250, 6290) | E132: 1080
B133: Олинган бўнаклар (6300) | E133: 1090
B134: Бюджетга тўловлар бўйича қарз (6400) | E134: 1100
B135: Суғурта бўйича қарз (6510) | E135: 1110
B136: Мақсадли давлат жамғармаларига тўловлар бўйича қарз (6520) | E136: 1120
B137: Таъсисчиларга бўлган қарзлар (6600) | E137: 1130
B138: Меҳнатга ҳақ тўлаш бўйича қарз (6700) | E138: 1140
B139: Қисқа муддатли банк кредитлари (6810) | E139: 1150
B140: Қисқа муддатли қарзлар (6820, 6830, 6840) | E140: 1160
B141: Узоқ муддатли мажбуриятларнинг жорий қисми (6950) | E141: 1170
B142: Бошқа кредиторлик қарзлар (6950 дан ташқари 6900) | E142: 1180
B143: III бўлим бўйича жами (сатр.730 + 930) | E143: 1190
B144: Баланс пассиви бўйича жами (сатр.570 + 720 + 1190) | E144: 1200
B146: * Муддати ўтган дебиторлик ва кредиторлик қарзлари мавжуд бўлган ҳолларда уларнинг расшифровкаси Бухгалтерия баланси — 1-сонли шакл — суғуртанинг иловасига мувофиқ келтирилади.

Sheet 1945_2_uz (hidden)
B1: Қайд рақами | C1: =VLOOKUP($C$5,Жадваллар!$A:$E,2,FALSE) -> 1945 | F1: Жадваллар рўйхати
B2: Ҳужжат номи | C2: =VLOOKUP($C$5,Жадваллар!$A:$E,3,FALSE) -> Суғурталовчиларнинг молиявий ҳисобот шаклларини ва уларни тўлдириш бўйича қоидаларни тасдиқлаш тўғрисидаги Молия вазирлиги буйруғи
B3: Илова рақами | C3: =VLOOKUP($C$5,Жадваллар!$A:$E,4,FALSE) -> 2
B4: Илова номи | C4: =VLOOKUP($C$5,Жадваллар!$A:$E,5,FALSE) -> Балансдан ташқари счётларда ҳисобга олинадиган қийматликларнинг мавжудлиги тўғрисида маълумотнома
B5: Илова коди | C5: 1945_2
B7: Кўрсаткичлар номи | E7: Сатр коди | F7: Ҳисобот даври бошига | G7: Ҳисобот даври охирига
B8: Қисқа муддатли ижарага олинган асосий воситалар (001) | E8: 1210
B9: Масъул сақлашга қабул қилинган товар-моддий қийматликлар (002) | E9: 1220
B10: Қайта ишлашга қабул қилинган материаллар (003) | E10: 1230
B11: Комиссияга қабул қилинган товарлар (004) | E11: 1240
B12: Ўрнатиш учун қабул қилинган асбоб-ускуналар (005) | E12: 1250
B13: Қатъий ҳисобот бланкалари (006) | E13: 1260
B14: Тўловга қобилиятсиз дебиторларнинг зарарга ҳисобдан чиқарилган қарзи (007) | E14: 1270
B15: Олинган мажбуриятлар ва тўловларнинг таъминоти (008) | E15: 1280
B16: Берилган мажбуриятлар ва тўловларнинг таъминоти (009) | E16: 1290
B17: Узоқ муддатли ижара шартномасига асосан берилган асосий воситалар (010) | E17: 1300
B18: Ссуда шартномаси бўйича олинган мулк (011) | E18: 1310
B19: Келгуси даврларда солиқ солинадиган базадан чиқариладиган харажатлар (012) | E19: 1320
B20: Вақтинчалик солиқ имтиёзлари (турлари бўйича) (013) | E20: 1330
B21: Фойдаланишдаги инвентарь ва хўжалик жиҳозлари (014) | E21: 1340
B23: * Муддати ўтган дебиторлик ва кредиторлик қарзлари мавжуд бўлган ҳолларда уларнинг расшифровкаси Бухгалтерия баланси — 1-сонли шакл — суғуртанинг иловасига мувофиқ келтирилади.

Sheet 1945_3_uz (hidden)
B1: Қайд рақами | C1: =VLOOKUP($C$5,Жадваллар!$A:$E,2,FALSE) -> 1945 | H1: Жадваллар рўйхати
B2: Ҳужжат номи | C2: =VLOOKUP($C$5,Жадваллар!$A:$E,3,FALSE) -> Суғурталовчиларнинг молиявий ҳисобот шаклларини ва уларни тўлдириш бўйича қоидаларни тасдиқлаш тўғрисидаги Молия вазирлиги буйруғи
B3: Илова рақами | C3: =VLOOKUP($C$5,Жадваллар!$A:$E,4,FALSE) -> 3
B4: Илова номи | C4: =VLOOKUP($C$5,Жадваллар!$A:$E,5,FALSE) -> Молиявий натижалар тўғрисидаги ҳисобот — 2-сонли шакл — суғурта
B5: Илова коди | C5: 1945_3
B7: Кўрсаткичлар номи | E7: Сатр коди | F7: Ўтган йилнинг шу даврида | H7: Ҳисобот даврида
F8: Даромад лар (фойда) | G8: Харажат лар (зарарлар) | H8: Даромад лар (фойда) | I8: Харажат лар (зарарлар)
B9: Суғурта хизматларини кўрсатишдан даромадлар, (сатр.011-012+013+/-014+/-015+/-016+/-017+/-018+019), шу жумладан: | E9: 10
B10: Тўғридан-тўғри суғурта қилиш ва биргаликда суғурта қилиш бўйича (биргаликда суғурта қилиш шартномасида суғурталовчининг белгиланган улуши қисмида) суғурта мукофотлари | E10: 11
B11: Қайта суғурта қилишга берилган шартномалар бўйича суғурта мукофотлари | E11: 12
B12: Қайта суғурта қилишга қабул қилинган шартномалар бўйича суғурта мукофотлари | E12: 13
B13: Ишлаб топилмаган мукофотлар захирасидаги қайта суғурталовчиларнинг улушини ҳисобга олган ҳолдаги, ишлаб топилмаган мукофотлар захираси ўзгаришининг натижаси | E13: 14
B14: Хабар қилинган, лекин бартараф этилмаган зарарлар захирасидаги қайта суғурталовчиларнинг улушини ҳисобга олган ҳолдаги, хабар қилинган, лекин бартараф этилмаган зарарлар захираси ўзгаришининг натижаси | E14: 15
B15: Содир бўлган, лекин хабар қилинмаган зарарлар захирасидаги қайта суғурталовчиларнинг улушини ҳисобга олган ҳолдаги, содир бўлган, лекин хабар қилинмаган зарарлар захираси ўзгаришининг натижаси | E15: 16
B16: Ҳаёт суғуртаси бўйича захиралардаги қайта суғурталовчиларнинг улушини ҳисобга олган ҳолдаги, ҳаёт суғуртаси бўйича захиралар ўзгаришининг натижаси | E16: 17
B17: Бошқа техник захиралардаги қайта суғурталовчиларнинг улушини ҳисобга олган ҳолдаги, тегишли захиралар ўзгаришининг натижаси | E17: 18
B18: Суғурта хизматларини кўрсатишдан бошқа даромадлар | E18: 19
B19: Воситачилик хизматини кўрсатишдан даромадлар | E19: 20
B20: Қайта суғурта бўйича зарарлар улушининг қопланиши бўйича даромадлар | E20: 30
B21: Қайта суғурта бўйича комиссион мукофотлар, тантьемалар ва йиғимлар бўйича даромадлар | E21: 40
B22: Аджастер ва сюрвейер хизматларини кўрсатишдан олинган даромадлар | E22: 50
B23: Суғурта хизматларини кўрсатишдан соф тушум (сатр. 010+020+030+040+050) | E23: 60
B24: Кўрсатилган суғурта хизматларининг таннархи | E24: 70
B25: Суғурта хизматларини кўрсатишдан ялпи фойда (зарар) (сатр.060-070) | E25: 80
B26: Давр харажатлари, жами (сатр.100+110+120+130), шу жумладан: | E26: 90
B27: Сотиш харажатлари | E27: 100
B28: Маъмурий харажатлар | E28: 110
B29: Бошқа операцион харажатлар | E29: 120
B30: Келгусида солиққа тортиладиган базадан чиқариладиган ҳисобот даври харажатлари | E30: 130
B31: Асосий фаолиятнинг бошқа даромадлари | E31: 140
B32: Асосий фаолиятнинг фойдаси (зарари) (сатр.080-090+140) | E32: 150
B33: Молиявий фаолиятнинг даромадлари, жами (сатр.170+180+190+200+210), шу жумладан: | E33: 160
B34: Дивидендлар кўринишидаги даромадлар | E34: 170
B35: Фоизлар кўринишидаги даромадлар | E35: 180
B36: Узоқ муддатли ижара (лизинг) дан даромадлар | E36: 190
B37: Валюта курси фарқларидан даромадлар | E37: 200
B38: Молиявий фаолиятнинг бошқа даромадлари | E38: 210
B39: Молиявий фаолият бўйича харажатлар, жами (сатр.230+240+250+260), шу жумладан: | E39: 220
B40: Фоизлар кўринишидаги харажатлар | E40: 230
B41: Узоқ муддатли ижара (лизинг) бўйича фоизлар кўринишидаги харажатлар | E41: 240
B42: Валюта курси фарқларидан зарарлар | E42: 250
B43: Молиявий фаолият бўйича бошқа харажатлар | E43: 260
B44: Умумхўжалик фаолиятининг фойдаси (зарари) (сатр.150+160-220) | E44: 270
B45: Фавқулоддаги фойда ва зарарлар | E45: 280
B46: Фойда солиғини тўлагунга қадар фойда (зарар) (сатр.270+/-280) | E46: 290
B47: Фойда солиғи | E47: 300
B48: Фойдадан бошқа солиқлар ва бошқа мажбурий тўловлар | E48: 310
B49: Ҳисобот даврининг соф фойдаси (зарари) (сатр.290-300-310) | E49: 320

Sheet 1945_4_uz (hidden)
B1: Қайд рақами | C1: =VLOOKUP($C$5,Жадваллар!$A:$E,2,FALSE) -> 1945 | F1: Жадваллар рўйхати
B2: Ҳужжат номи | C2: =VLOOKUP($C$5,Жадваллар!$A:$E,3,FALSE) -> Суғурталовчиларнинг молиявий ҳисобот шаклларини ва уларни тўлдириш бўйича қоидаларни тасдиқлаш тўғрисидаги Молия вазирлиги буйруғи
B3: Илова рақами | C3: =VLOOKUP($C$5,Жадваллар!$A:$E,4,FALSE) -> 4
B4: Илова номи | C4: =VLOOKUP($C$5,Жадваллар!$A:$E,5,FALSE) -> Бюджетга тўловлар тўғрисида маълумотнома
B5: Илова коди | C5: 1945_4
B7: Кўрсаткичлар номи | E7: Сатр коди | F7: Ҳисобот даври учун ҳисоб-китоб бўйича тўланади | G7: Ҳисобот даври учун ҳисоб-китоб бўйича тўланадигандан ҳақиқатда тўлангани
B8: Юридик шахслардан олинадиган фойда солиғи | E8: 330
B9: Жисмоний шахслардан олинадиган даромад солиғи | E9: 340
B10: шу жумладан: шахсий жамғариб бориладиган пенсия ҳисобварақларига ажратмалар | E10: 341
B11: Қўшилган қиймат солиғи | E11: 360
B12: Акциз солиғи | E12: 370
B13: Ер қаъридан фойдаланганлик учун солиқ | E13: 380
B14: Сув ресурсларидан фойдаланганлик учун солиқ | E14: 390
B15: Юридик шахсларнинг мол-мулкига солинадиган солиқ | E15: 400
B16: Юридик шахслардан олинадиган ер солиғи | E16: 410
B17: Ягона солиқ тўлови | E17: 420
B18: Ягона ер солиғи | E18: 430
B19: Қатъий белгиланган солиқ | E19: 440
B20: Бошқа солиқлар | E20: 450
B21: Давлат мақсадли жамғармаларига мажбурий ажратмалар | E21: 460
B22: Ягона ижтимоий тўлов | E22: 490
B23: Импорт бўйича божхона божи | E23: 500
B24: Маҳаллий мажбурий тўловлар | E24: 510
B25: Бюджетга тўловларнинг кечиктирилганлиги учун молиявий санкциялар | E25: 520
B26: Жами бюджетга тўловлар суммаси (330 дан 520 сатргача 341 сатрдан ташқари) | E26: 530

Sheet 1945_5_uz (hidden)
B1: Қайд рақами | C1: =VLOOKUP($C$5,Жадваллар!$A:$E,2,FALSE) -> 1945 | F1: Жадваллар рўйхати
B2: Ҳужжат номи | C2: =VLOOKUP($C$5,Жадваллар!$A:$E,3,FALSE) -> Суғурталовчиларнинг молиявий ҳисобот шаклларини ва уларни тўлдириш бўйича қоидаларни тасдиқлаш тўғрисидаги Молия вазирлиги буйруғи
B3: Илова рақами | C3: =VLOOKUP($C$5,Жадваллар!$A:$E,4,FALSE) -> 5
B4: Илова номи | C4: =VLOOKUP($C$5,Жадваллар!$A:$E,5,FALSE) -> Пул оқимлари тўғрисидаги ҳисобот — 4-сонли шакл — суғурта
B5: Илова коди | C5: 1945_5
B7: Кўрсаткичлар номи | E7: Сатр коди | F7: Кирим | G7: Чиқим
B8: Операцион фаолият
B9: Суғурта операциялари бўйича пул тушумлари, жами (сатр 020+030+040+050+060), шу жумладан: | E9: 10
B10: Суғурта ва биргаликда суғурта қилиш шартномалари бўйича суғурта мукофотлари кўринишида келиб тушган пул маблағлари | E10: 20
B11: Қайта суғурта қилиш шартномалари бўйича суғурта мукофотлари кўринишида келиб тушган пул маблағлари | E11: 30
B12: Суғурта воситачиси, аджастери, сюрвейери хизматларини кўрсатишдан келиб тушган пул маблағлари | E12: 40
B13: Қайта суғурта қилиш бўйича комиссион мукофотлар, тантьемалар ва йиғимлар кўринишида келиб тушган пул маблағлари | E13: 50
B14: Қайта суғурта қилиш ва ретроцессияга берилган таваккалчиликлар бўйича зарарлар улушини қоплаш бўйича келиб тушган пул маблағлари | E14: 60
B15: Суғурта операциялари бўйича пул тўловлари, жами (сатр 080+090+100+110+120+130), шу жумладан: | E15: 70
B16: Қайта суғурта ва ретроцессия шартномалари бўйича суғурта мукофотлари кўринишида тўланган пул маблағлари | E16: 80
B17: Суғурта ва биргаликда суғурта қилиш шартномалари бўйича суғурта товонлари кўринишида тўланган пул маблағлари | E17: 90
B18: Қайта суғурта қилиш ва ретроцессия бўйича қабул қилинган таваккалчиликлар бўйича зарарлар улушини қоплаш кўринишида тўланган пул маблағлари | E18: 100
B19: Суғурта воситачиларига суғурта, биргаликда суғурта қилиш ва қайта суғурта қилиш шартномаларини тузганлик учун мукофотлар кўринишида тўланган пул маблағлари | E19: 110
B20: Актуарийлар, аджастерлар, сюрвейерлар, ассистанслар томонидан кўрсатилган хизматлар учун тўланган пул маблағлари | E20: 120
B21: Огоҳлантириш чора - тадбирларини молиялаштиришга тўланган пул маблағлари | E21: 130
B22: Ходимларга ва улар номидан тўланган пул маблағлари | E22: 140
B23: Операцион фаолиятнинг бошқа пул тушумлари ва тўловлари | E23: 150
B24: Жами: операцион фаолиятнинг соф пул кирими/чиқими (сатр. 010-070-140+/-150) | E24: 160
B25: Инвестиция фаолияти
B26: Асосий воситаларни сотиб олиш ва сотиш | E26: 170
B27: Номоддий активларни сотиб олиш ва сотиш | E27: 180
B28: Узоқ ва қиска муддатли инвестицияларни сотиб олиш ва сотиш | E28: 190
B29: Инвестицион фаолиятнинг бошқа пул тушумлари ва тўловлари | E29: 200
B30: Жами: инвестицион фаолиятнинг соф пул кирими/чиқими (сатр. 170+/-180+/-190+/-200) | E30: 210
B31: Молиявий фаолият
B32: Олинган ва тўланган фоизлар | E32: 220
B33: Олинган ва тўланган дивидендлар | E33: 230
B34: Акциялар чиқаришдан ёки хусусий капитал билан боғлиқ бўлган бошқа инструментлардан тушган пул тушумлари | E34: 240
B35: Хусусий акцияларни сотиб олганда ва уларни сотганда пул тўловлари ва тушумлари | E35: 250
B36: Узоқ ва қисқа муддатли кредит ва қарзлар бўйича пул тушумлари ва тўловлари | E36: 260
B37: Узоқ муддатли ижара (лизинг) бўйича пул тушумлари ва тўловлари | E37: 270
B38: Молиявий фаолиятнинг бошқа пул тушумлари ва тўловлари | E38: 280
B39: Жами: молиявий фаолиятнинг соф пул кирими/чиқими (сатр 220+/-230+240+/-250+/-260+/-270+/-280) | E39: 290
B40: Солиққа тортиш
B41: Тўланган фойда солиғи | E41: 300
B42: Тўланган бошқа солиқлар | E42: 310
B43: Жами: тўланган солиқлар (сатр 300+310) | E43: 320
B44: Жами: молиявий-хўжалик фаолиятининг соф пул кирими/чиқими (сатр 160+/-210+/-290-320) | E44: 330
B45: Чет эл валютасидаги пул маблағларини қайта баҳолашдан юзага келган курс фарқлари сальдоси. | E45: 331
B46: Йил бошидаги пул маблағлари | E46: 340
B47: Йил охиридаги пул маблағлари | E47: 350

Sheet 1945_6_uz (hidden)
B1: Қайд рақами | C1: =VLOOKUP($C$5,Жадваллар!$A:$E,2,FALSE) -> 1945 | F1: Жадваллар рўйхати
B2: Ҳужжат номи | C2: =VLOOKUP($C$5,Жадваллар!$A:$E,3,FALSE) -> Суғурталовчиларнинг молиявий ҳисобот шаклларини ва уларни тўлдириш бўйича қоидаларни тасдиқлаш тўғрисидаги Молия вазирлиги буйруғи
B3: Илова рақами | C3: =VLOOKUP($C$5,Жадваллар!$A:$E,4,FALSE) -> 6
B4: Илова номи | C4: =VLOOKUP($C$5,Жадваллар!$A:$E,5,FALSE) -> Чет эл валютасидаги пул маблағларининг ҳаракати тўғрисида маълумотнома
B5: Илова коди | C5: 1945_6
B7: Кўрсаткичлар номи | E7: Сатр коди | F7: Миқдори
B8: Йил бошига қолдиқ | E8: 360
B9: Келиб тушган валюта маблағлари, жами (сатр 371+372+373+374), шу жумладан | E9: 370
B10: Сотишдан олинган тушум | E10: 371
B11: Конвертация қилинган | E11: 372
B12: Молиявий фаолият бўйича | E12: 373
B13: Бошқа манбалар | E13: 374
B14: Сарфланган валюта маблағлари, жами (сатр 381+382+383), шу жумладан | E14: 380
B15: Мол етказиб берувчилар ва пудратчиларга тўловлар | E15: 381
B16: Молиявий фаолият бўйича тўловлар | E16: 382
B17: Бошқа мақсадлар учун | E17: 383
B18: Чет эл валютасидаги пул маблағларини қайта баҳолашдан юзага келган курс фарқлари сальдоси | E18: 390
B19: Йил охиридаги қолдиқ (сатр. 360+370-380+/-390) | E19: 400

Sheet 1945_7_uz (hidden)
B1: Қайд рақами | C1: =VLOOKUP($C$5,Жадваллар!$A:$E,2,FALSE) -> 1945 | H1: Жадваллар рўйхати
B2: Ҳужжат номи | C2: =VLOOKUP($C$5,Жадваллар!$A:$E,3,FALSE) -> Суғурталовчиларнинг молиявий ҳисобот шаклларини ва уларни тўлдириш бўйича қоидаларни тасдиқлаш тўғрисидаги Молия вазирлиги буйруғи
B3: Илова рақами | C3: =VLOOKUP($C$5,Жадваллар!$A:$E,4,FALSE) -> 7
B4: Илова номи | C4: =VLOOKUP($C$5,Жадваллар!$A:$E,5,FALSE) -> Хусусий капитал тўғрисидаги ҳисобот — 5-сонли шакл — суғурта
B5: Илова коди | C5: 1945_7
B7: Кўрсаткичлар номи | E7: Сатр коди | F7: Устав капитали | G7: Қўшилган капитал | H7: Захира капитали | I7: Тақсимланмаган фойда (қопланмаган зарар) | J7: Сотиб олинган хусусий акциялар | K7: Мақсадли тушумлар ва бошқалар | L7: Жами
B8: Йил бошидаги қолдиқ | E8: 10
B9: Қимматли қоғозлар эмиссияси | E9: 20
B10: Узоқ муддатли активларни қайта баҳолаш | E10: 30
B11: Устав капиталини шакллантиришда пайдо бўлган валюта курси фарқлари | E11: 40
B12: Захира капиталига ажратмалар | E12: 50
B13: Ҳисобот йилининг тақсимланмаган фойдаси (қопланмаган зарари) | E13: 60
B14: Текинга олинган мол-мулк | E14: 70
B15: Мақсадли фойдаланиш учун олинган маблағлар | E15: 80
B16: Тўланган дивидендлар | E16: 90
B17: Хусусий капитал шаклланишининг бошқа манбалари | E17: 100
B18: Йил охиридаги қолдиқ | E18: 110
B19: Хусусий капиталининг кўпайиши (+) ёки камайиши (-) | E19: 120
B20: МАЪЛУМОТ УЧУН:
B21: Чиқарилган акциялар сони, дона | E21: 130
B22: шу жумладан:
B23: имтиёзли | E23: 131
B24: оддий | E24: 132
B25: Акциянинг номинал қиймати | E25: 140
B26: Муомаладаги акциялар сони, дона | E26: 150
B27: шу жумладан:
B28: имтиёзли | E28: 151
B29: оддий | E29: 152
